Cogmind - Beta 17 @@@ ROGUE MODE // 2026.07.14 @ 22:20:30 Player: Dadrick Result: Destroyed by G-73 Enforcer with Heavy Laser Performance ------------- Evolutions (8) 4000 Regions Visited (29) 5800 Robots Destroyed (221) 1105 Value Destroyed (6531) 6531 Prototype IDs (57) 1140 Alien Tech Used (6) 1200 Bonus (27737) 27737 TOTAL SCORE: 47513 Bonus ------- High Alert Combat Kills 471 Follower Combat Kills 1717 Prayed to X0-1V1 5000 Major X0-1V1 Interference 18450 Network Hubs Disabled 400 Registered with UFD 300 Met Optimus in HQ 500 Met Data Miner 300 Met Zhirov 300 Built Enhanced Grunts 300 Met Optimus at Protoforge 1000 Friendly Fire -1001 Cogmind --------- Core Integrity 0/1200 Matter 900/900 Energy 1199/1200 System Corruption 4% Temperature Cool (27) Movement Core (50) Location -2/Protoforge Parts ------- > --- POWER (3) -------- (None) > --- PROPULSION (7) --- (None) > --- UTILITY (10) ----- Experimental Optical Array Advanced Signal Interpreter Core Analyzer X0-1V1's Piety Tracker > --- WEAPON (5) ------- (None) > --- INVENTORY (6) ---- Long-range Sensor Array Advanced Weapon Cycler Centrium Medium Armor Plating Transdimensional Reconstructor Concept XC Strikerail Peak State ------------ > --- POWER ------------ Enhanced Fission Core Light Antimatter Reactor > --- PROPULSION ------- Experimental Cesium-ion Thruster Nuclear Pulse Array Impulse Thruster Field Propulsion Array Q-thruster > --- UTILITY ---------- Advanced Heat Sink Advanced Weight Redist. System Experimental Optical Array Long-range Sensor Array Advanced Signal Interpreter Advanced Targeting Computer Core Analyzer Centrium Light Armor Plating Centrium Medium Armor Plating X0-1V1's Piety Tracker > --- WEAPON ----------- Compact HERF Cannon Light Antimatter Cannon Powered Hammer Centrium Greatsword > --- INVENTORY -------- Light Quantum Reactor Long-range Sensor Array Advanced Weapon Cycler Transdimensional Reconstructor High-powered Transdimensional Reconstructor Heavy Rocket Launcher [Rating: 169] Favorites ----------- Power Light Nuclear Core Engine Cooled Ion Engine Power Core Light Nuclear Core Reactor Light Antimatter Reactor Propulsion Improved Flight Unit Treads Light Treads Leg Improved Aluminum Leg Hover Unit Cooled Gravmag System Flight Unit Improved Flight Unit Utility X0-1V1's Piety Tracker Device X0-1V1's Piety Tracker Storage Large Storage Unit Processor Enhanced Optical Array Hackware Advanced Hacking Suite Protection Hardened Light Armor Plating Weapon Enhanced Autogun Energy Gun Small Laser Energy Cannon Matter Neutralizer Ballistic Gun Enhanced Autogun Ballistic Cannon Light Antimatter Cannon Launcher Heavy Rocket Launcher Special Weapon Advanced Remote Datajack Impact Weapon Heavy Mace Slashing Weapon Centrium Greatsword Build | -11 -10 -9 -9 -8 -8 -8 -8 -6 -6 -6 -6 -6 -6 -5 -5 -5 -5 -5 -4 -4 -4 -4 -4 -4 -3 -3 -2 -2 -2 ------- Run | Yrd Mat Mat Min Mat Sto Rec Scr Fac Was Fac Low Low Dat Pro Fac Upp Upp Zhi Pro Fac Ext Cet Arc Hub Res Tes Res Qua Frg Slots Evolved 16 | . . 2 . 2 . . . 4 . . . . . . 2 . . . . 2 . . . . 2 . 2 . . Power . | . . . . . . . . . . . . . . . . . . . . . . . . . . . . . . Propulsion 5 | . . 1 . . . . . 2 . . . . . . 1 . . . . 1 . . . . . . . . . Utility 7 | . . . . 2 . . . 2 . . . . . . 1 . . . . 1 . . . . . . 1 . . Weapon 4 | . . 1 . . . . . . . . . . . . . . . . . . . . . . 2 . 1 . . Parts Attached 207 | 8 10 25 4 24 14 1 2 19 . 18 2 1 . 1 7 1 2 6 . 15 7 4 1 4 19 2 3 1 6 Power 24 | 1 1 3 1 3 1 . 1 1 . 2 . . . . 1 . . 2 . 1 1 . . 1 3 1 . . . Engine 8 | 1 . 2 . 2 1 . . . . 1 . . . . . . . . . 1 . . . . . . . . . Core 12 | . 1 1 1 1 . . 1 1 . 1 . . . . 1 . . 1 . . . . . . 2 1 . . . Reactor 4 | . . . . . . . . . . . . . . . . . . 1 . . 1 . . 1 1 . . . . Propulsion 59 | 2 . 12 2 7 4 1 1 9 . . . . . . 2 . . 1 . 7 . . . 1 6 . 1 . 3 Treads 4 | 2 . . . . . . . . . . . . . . . . . . . 2 . . . . . . . . . Leg 28 | . . 12 2 7 4 1 1 . . . . . . . . . . 1 . . . . . . . . . . . Wheel . | . . . . . . . . . . . . . . . . . . . . . . . . . . . . . . Hover 1 | . . . . . . . . . . . . . . . . . . . . . . . . . 1 . . . . Flight 26 | . . . . . . . . 9 . . . . . . 2 . . . . 5 . . . 1 5 . 1 . 3 Utility 72 | 2 6 4 . 5 4 . . 7 . 14 1 . . . 3 . 2 2 . 4 4 4 1 1 6 . 2 . . Device 32 | 1 1 1 . 1 1 . . 5 . 7 1 . . . . . 2 1 . 2 3 1 1 . 3 . 1 . . Storage 4 | 1 3 . . . . . . . . . . . . . . . . . . . . . . . . . . . . Processor 13 | . . . . . 1 . . 2 . 5 . . . . 1 . . . . . . . . 1 2 . 1 . . Hackware 5 | . . . . . 1 . . . . 1 . . . . 2 . . . . 1 . . . . . . . . . Protection 18 | . 2 3 . 4 1 . . . . 1 . . . . . . . 1 . 1 1 3 . . 1 . . . . Artifact . | . . . . . . . . . . . . . . . . . . . . . . . . . . . . . . Weapon 52 | 3 3 6 1 9 5 . . 2 . 2 1 1 . 1 1 1 . 1 . 3 2 . . 1 4 1 . 1 3 Energy Gun 2 | 1 . . . . . . . . . . . . . . . . . 1 . . . . . . . . . . . Energy Cannon 2 | . . . . . . . . . . . . . . . . . . . . 1 . . . . . . . 1 . Ballistic Gun 28 | 2 2 6 1 6 4 . . 1 . 1 1 . . 1 . . . . . . 2 . . . . . . . 1 Ballistic Cannon 2 | . . . . . . . . . . . . . . . . . . . . . . . . 1 . 1 . . . Launcher 6 | . . . . 1 1 . . . . 1 . . . . . 1 . . . . . . . . 1 . . . 1 Special Weapon 4 | . 1 . . . . . . 1 . . . . . . 1 . . . . . . . . . 1 . . . . Impact Weapon 3 | . . . . 1 . . . . . . . 1 . . . . . . . 1 . . . . . . . . . Slashing Weapon 5 | . . . . 1 . . . . . . . . . . . . . . . 1 . . . . 2 . . . 1 Piercing Weapon . | . . . . . . . . . . . . . . . . . . . . . . . . . . . . . . Special Melee Weapon . | . . . . . . . . . . . . . . . . . . . . . . . . . . . . . . Unidentified Prototypes 35 | . . 1 . 3 2 . . 3 . . . 1 . . 1 . . 4 . 3 . 1 . . 7 2 . 2 5 Parts Lost 61 | . 1 4 1 4 3 . . . . 10 . . . 1 . 1 7 . . . 2 . 1 2 4 1 2 3 14 Power 8 | . . 2 . . . . . . . 2 . . . . . . 1 . . . . . . . 2 . . . 1 Propulsion 18 | . . . 1 2 1 . . . . . . . . 1 . 1 1 . . . . . 1 1 . 1 . 2 6 Utility 25 | . . 1 . 1 2 . . . . 7 . . . . . . 4 . . . 2 . . 1 1 . 2 . 4 Weapon 10 | . 1 1 . 1 . . . . . 1 . . . . . . 1 . . . . . . . 1 . . 1 3 Highest Loss Streak 8 | . 1 2 1 1 1 . . . . 4 . . . 1 . 1 7 . . . 1 . 1 1 2 1 2 3 8 To Critical Strikes . | . . . . . . . . . . . . . . . . . . . . . . . . . . . . . . Average Backups 9 | 1 11 14 15 14 15 16 16 6 6 5 5 5 5 5 5 5 4 5 6 5 5 6 5 6 5 6 5 6 5 Power . | . 1 1 1 . 1 1 1 . . . 1 1 1 1 1 1 1 1 1 1 1 1 1 1 . . . . . Propulsion 2 | . 1 4 5 5 6 6 6 . 1 . . . . . . 1 . . . . . . . . . . . . . Utility 3 | . 4 6 6 4 4 4 5 3 3 2 2 2 2 2 1 1 1 2 3 1 1 1 1 2 2 3 2 2 3 Weapon 2 | 1 4 3 2 4 3 4 4 1 1 1 1 1 1 1 1 1 1 . 1 1 1 1 1 1 1 1 1 1 . Tool/Special . | . . . . . . . . . . . . . . . . . . . . . . . . . . . . . . Unused Backups 33 | . . 1 1 3 1 1 . 3 . 1 1 2 . . 1 . . . . 4 3 1 . . 4 . 1 2 3 Power 2 | . . . . . . . . 1 . . . . . . . . . . . . . . . . . . . 1 . Propulsion 1 | . . . . . . . . . . . . . . . . . . . . . 1 . . . . . . . . Utility 14 | . . . 1 1 1 . . 1 . 1 . 2 . . . . . . . 4 1 . . . . . . . 2 Weapon 11 | . . 1 . 2 . 1 . 1 . . . . . . . . . . . . 1 . . . 4 . 1 . . Tool/Special 5 | . . . . . . . . . . . 1 . . . 1 . . . . . . 1 . . . . . 1 1 Average Slot Usage (%) 91 | . 100 99 97 96 99 100 100 97 100 94 88 90 88 88 76 84 78 63 78 75 76 80 82 78 78 85 78 74 56 Engine 2 | . 3 3 1 4 8 8 5 . . . . . . . . . . . . . 2 . . . . . . . . Core 4 | . 10 6 8 3 . . 2 6 12 8 6 6 5 5 7 10 9 6 10 5 . . . . 2 3 4 2 2 Treads 3 | . 28 . . . . . . . . . . . . . . . . . . . . . . . . . . . . Leg 13 | . . 37 37 31 32 33 33 . . . . . . . . . . . . . . . . . . . . . . Flight 12 | . . . . . . . . 33 31 31 31 31 29 29 21 21 19 15 15 20 30 28 25 21 21 25 20 16 11 Device 14 | . 8 1 7 15 13 16 16 17 18 16 17 17 17 17 17 13 14 12 15 17 18 19 21 22 20 21 19 15 15 Storage 5 | . 14 10 10 8 8 8 8 . . . . . . . . . . . . . . . . . . . . . . Processor 7 | . . . . . 5 8 8 11 12 13 18 18 17 17 15 15 15 15 15 12 9 9 9 9 11 13 12 15 15 Protection 4 | . 5 8 2 6 4 . . 5 6 2 2 3 5 5 . 5 3 2 5 2 3 9 11 9 4 4 6 5 2 Energy Gun 1 | . 13 . . . . . . . . . . . . . . . . . . . . . . . 1 1 . . . Ballistic Gun 13 | . 14 30 30 23 19 16 25 12 12 10 6 6 5 5 5 5 4 . . . . . . . . . . . . Impact Weapon 3 | . . . . . 5 7 . 5 6 5 6 6 5 5 4 4 3 2 5 3 3 4 4 4 4 4 4 2 . Peak Build Rating 169 | 7 13 25 26 52 48 49 51 72 69 84 81 82 82 85 112 106 98 83 83 129 129 132 132 132 150 150 161 169 129 Average Rating 64 | 5 9 18 24 43 46 48 49 67 69 67 79 80 82 83 98 104 87 61 83 99 117 123 128 127 136 148 156 153 111 On Entrance 80 | . 7 13 25 23 45 48 49 51 69 69 73 74 82 82 81 106 98 49 83 83 129 117 132 127 121 142 143 161 129 Avg Prop Armor Cover (%) 9 | . . . . . . . . . . . . . . . . . . . . . . . . . 9 . . . . Naked Turns . | . . . . . . . . . . . . . . . . . . . . . . . . . . . . . . Heaviest Build 59 | 11 33 37 39 49 44 39 39 25 25 31 28 28 28 28 35 37 33 23 23 57 57 51 51 46 48 49 54 59 36 Greatest Support 99 | 40 40 49 49 58 53 55 60 32 26 36 36 36 36 36 45 45 38 25 25 99 57 51 51 52 53 53 61 61 39 Greatest Overweight (x) 1 | . . 1 1 1 1 . . . . . . . . . . . . . . . . . . . 1 . . . . Average Overweight (x) . | . . . . . . . . . . . . . . . . . . . . . . . . . . . . . . Largest Inventory Capacity 16 | 8 15 15 15 16 16 16 16 16 6 6 6 6 6 6 6 6 6 6 6 6 6 6 6 6 6 6 6 6 6 Average Capacity 10 | 7 12 15 15 15 16 16 16 6 6 6 6 6 6 6 6 6 6 6 6 6 6 6 6 6 6 6 6 6 6 Most Carried 16 | 3 15 15 15 16 16 16 16 15 6 6 6 6 6 6 6 6 5 6 6 6 6 6 6 6 6 6 6 6 6 Average Carried 10 | 2 11 14 15 14 15 15 16 6 6 5 5 5 6 5 5 5 4 5 6 5 5 5 5 6 5 6 5 5 5 Final Capacity 16 | 8 15 15 15 16 16 16 16 6 6 6 6 6 6 6 6 6 6 6 6 6 6 6 6 6 6 6 6 6 6 Final Carried 16 | 3 15 15 15 16 16 16 16 6 6 6 6 6 6 6 6 4 5 6 6 5 6 6 6 6 6 6 6 6 5 Class Distribution -------------------- 19% | Scout 15% | Scavenger-Tank 12% | Mutant 7% | Ninja 7% | Commander-Scout 6% | Commander-Skirmisher 6% | Commander-Mutant 4% | Scavenger-Mutant 3% | Sprinter 3% | Scavenger-Gunner Dominant Class ---------------- Mutant | -10/Materials Scavenger-Tank | -9/Materials Scavenger-Gunner | -9/Mines Scavenger-Tank | -8/Materials Scavenger-Mutant | -8/Storage Commander-Mutant | -8/Recycling Commander-Skirmisher | -8/Scraptown Ninja | -6/Factory Ninja | -6/Waste Ninja | -6/Factory Sprinter | -6/Lower Caves Scout | -6/Lower Caves Scout | -6/Data Miner Scout | -5/Proximity Caves Scout | -5/Factory Scout | -5/Upper Caves Scout | -5/Upper Caves Scout | -5/Zhirov Scout | -4/Proximity Caves Hacker-Scout | -4/Factory Commander-Scout | -4/Extension Commander-Sprinter | -4/Cetus Commander-Scout | -4/Archives Commander-Scout | -4/Hub_04(d) Scout | -3/Research Scout | -3/Testing Scout | -2/Research Scout | -2/Quarantine Scout | -2/Protoforge Resources | -11 -10 -9 -9 -8 -8 -8 -8 -6 -6 -6 -6 -6 -6 -5 -5 -5 -5 -5 -4 -4 -4 -4 -4 -4 -3 -3 -2 -2 -2 ----------- Run | Yrd Mat Mat Min Mat Sto Rec Scr Fac Was Fac Low Low Dat Pro Fac Upp Upp Zhi Pro Fac Ext Cet Arc Hub Res Tes Res Qua Frg Matter Collected 8398 | 299 456 795 105 1541 545 40 160 348 . 370 46 160 . 32 248 150 188 105 131 162 1520 36 86 111 257 109 25 6 367 Remotely . | . . . . . . . . . . . . . . . . . . . . . . . . . . . . . . Salvage Created 9163 | 143 575 1500 117 1856 686 407 . 371 . 462 . 15 . . 270 106 102 105 15 39 881 153 . 653 573 109 25 . . Parts 428 | 8 38 93 5 90 51 11 . 11 . 9 . . . . 4 1 6 3 . . 36 7 . 19 29 3 4 . . Haulers Intercepted 19 | . 1 3 . 5 1 . . 1 . 1 . . . . 1 . . . . . . . . 4 2 . . . . Recyclers Shooed 7 | . 3 2 . 1 . 1 . . . . . . . . . . . . . . . . . . . . . . . Parts Field Recycled . | . . . . . . . . . . . . . . . . . . . . . . . . . . . . . . Retrieved Matter . | . . . . . . . . . . . . . . . . . . . . . . . . . . . . . . Parts Self-Destructed 8 | . . . . . . . . . . . 2 . . . . . 3 1 2 . . . . . . . . . . Prevented 2 | . . . . . . . . . . . 2 . . . . . . . . . . . . . . . . . . Parts Restored . | . . . . . . . . . . . . . . . . . . . . . . . . . . . . . . Kills | -11 -10 -9 -9 -8 -8 -8 -8 -6 -6 -6 -6 -6 -6 -5 -5 -5 -5 -5 -4 -4 -4 -4 -4 -4 -3 -3 -2 -2 -2 ------- Run | Yrd Mat Mat Min Mat Sto Rec Scr Fac Was Fac Low Low Dat Pro Fac Upp Upp Zhi Pro Fac Ext Cet Arc Hub Res Tes Res Qua Frg Combat Hostiles Destroyed 117 | . 14 25 3 26 9 3 . 3 . 1 . 1 . . . 5 8 . . . 13 2 . . 4 . . . . Melee 6 | . . . . . . 1 . . . 1 . . . . . . . . . . 1 . . . 3 . . . . Guns 74 | . 14 25 2 22 7 1 . 3 . . . . . . . . . . . . . . . . . . . . . Cannons 5 | . . . . . . . . . . . . . . . . . . . . . 4 1 . . . . . . . AOE 26 | . . . . 3 2 . . . . . . . . . . 5 8 . . . 7 . . . 1 . . . . Classes Destroyed 18 | 2 5 3 . 2 1 . . . . 1 . 1 . . . . . . 1 . 1 . . . 1 . . . . Worker 22 | . . . . 6 1 . . . . 3 . . . . 2 . . . . . 1 . . 5 3 . 1 . . Builder 13 | . 1 1 . 2 3 . . . . 2 . . . . . . . . . . 1 . . 2 . . 1 . . Tunneler 8 | 3 . . . 2 . . . 1 . . . . . . . . . . . . . . . 2 . . . . . Hauler 19 | . 1 3 . 5 1 . . 1 . 1 . . . . 1 . . . . . . . . 4 2 . . . . Recycler 14 | 1 . 2 . 1 1 4 . . . 1 . . . . 1 . . . . . 1 . . . 1 1 . . . Minesweeper 1 | . . . . . . . . . . . . . . . . . . . 1 . . . . . . . . . . Mechanic 2 | . . . . . 1 . . . . 1 . . . . . . . . . . . . . . . . . . . Operator 11 | . . 2 . 1 2 . . . . 4 . . . . 1 . . . . . . . . . 1 . . . . Watcher 12 | . 2 3 1 2 . . . 2 . . . . . . . . . . . 1 . . . . 1 . . . . Swarmer 20 | . 3 3 . 2 . . . . . . . . . . . 5 4 . . . 3 . . . . . . . . Cutter 3 | . . . . . . . . . . . . . . . . . . . . . . . . . 3 . . . . Grunt 53 | . 11 12 3 14 3 . . 3 . . . . . . . . 4 . . . 2 . . . 1 . . . . Duelist 3 | . . 2 . . 1 . . . . . . . . . . . . . . . . . . . . . . . . Sentry 25 | . . 8 . 8 4 3 . . . . . . . . . . . . . . 2 . . . . . . . . Hunter 8 | . . . . 2 1 . . . . . . . . . . . . . . . 5 . . . . . . . . Programmer 1 | . . . . . . . . . . 1 . . . . . . . . . . . . . . . . . . . Behemoth 1 | . . . . . . . . . . . . . . . . . . . . . 1 . . . . . . . . Cetus Guard 2 | . . . . . . . . . . . . . . . . . . . . . . 2 . . . . . . . Thief 1 | . . . . . . . . . . . . 1 . . . . . . . . . . . . . . . . . Thug 1 | . . . . . . . . . . . . . . . . . . . . . . . . 1 . . . . . Best Kill Streak 8 | 2 3 5 3 7 8 3 . 2 . 4 . 1 . . 2 5 4 . 1 1 5 2 . 6 4 1 1 . . Combat Bots Only 5 | . 3 4 3 4 3 1 . 2 . 1 . 1 . . . 5 4 . . . 5 2 . . 3 . . . . Max Kills in Single Turn 5 | 1 1 2 2 4 4 1 . 1 . 2 . 1 . . 1 2 3 . 1 1 2 1 . 5 1 1 1 . . Gunslinging 1 | . . 1 . . . . . . . . . . . . . . . . . . . . . . . . . . . Exploded 3 | . . . . 3 2 . . . . . . . . . . 2 3 . . . 1 . . . 1 . . . . Melee 1 | . . . . . . 1 . . . 1 . . . . . . . . . . 1 . . . 1 . . . . Uniques/NPCs Destroyed 1 | . . . . . . . . . . . . . . . . . . . . . . 1 . . . . . . . A7 (-4/Cetus) Combat | -11 -10 -9 -9 -8 -8 -8 -8 -6 -6 -6 -6 -6 -6 -5 -5 -5 -5 -5 -4 -4 -4 -4 -4 -4 -3 -3 -2 -2 -2 -------- Run | Yrd Mat Mat Min Mat Sto Rec Scr Fac Was Fac Low Low Dat Pro Fac Upp Upp Zhi Pro Fac Ext Cet Arc Hub Res Tes Res Qua Frg Hostile Shots Fired 1124 | . 91 117 5 176 41 4 . 39 . 143 2 . . 11 16 21 32 . 2 6 128 16 6 10 62 14 22 15 145 Missed 480 | . 21 26 1 49 8 1 . 27 . 80 . . . 6 9 8 12 . 2 4 73 10 3 7 34 10 17 7 65 Hits 644 | . 70 91 4 127 33 3 . 12 . 63 2 . . 5 7 13 20 . . 2 55 6 3 3 28 4 5 8 80 Melee 14 | . . 2 . . . . . . . . . . . . . . . . . . . . . . 11 . . . 1 Projectile 630 | . 70 89 4 127 33 3 . 12 . 63 2 . . 5 7 13 20 . . 2 55 6 3 3 17 4 5 8 79 AOE 6 | . . . . . . . . . . . . . . . . 5 . . . . . . . . 1 . . . . Critical Strikes 30 | . 1 4 . 8 . . . . . 2 . . . . . . 2 . . . 3 . . . 7 . . . 3 Part Disruptions 1 | . . . . . . . . . . 1 . . . . . . . . . . . . . . . . . . . Damage Taken 12656 | . 895 1267 100 1803 555 44 . 156 . 910 36 . . 103 120 337 472 . . 43 1087 198 100 267 784 102 190 285 2802 Core 2011 | . 125 101 17 103 59 . . 35 . 115 19 . . 40 22 9 43 . . . 73 . . . 77 . 22 46 1105 Absorbed by Shields 79 | . . . . . . . . . . . . . . . . . . . . . 79 . . . . . . . . Ignored by Resistances 153 | . . . . . . . . . . . . . . 13 7 27 . . . . . 17 . . . . . . 89 Core Remaining (%) 83 | 100 50 . 70 . . . 80 . . . . . . 94 . . . . 90 . . . . 91 . 92 . . . Volleys Fired 569 | 16 72 103 5 87 42 2 . 15 . 1 12 22 . 11 4 14 13 . . 15 78 13 7 16 7 3 . 5 6 Largest 3 | 2 2 3 3 3 3 3 . 2 . 1 1 1 . 1 1 1 1 . . 1 1 1 1 1 1 1 . 1 1 Hottest 105 | 60 100 80 69 83 75 75 . 50 . 36 35 35 . 38 38 39 39 . . 105 105 105 105 105 105 51 . 51 94 Shots Fired 1123 | 32 140 308 15 257 105 5 . 29 . 3 12 25 . 11 4 14 12 . . 15 78 13 7 16 7 3 . 5 7 Gun 946 | 32 136 308 15 255 105 5 . 27 . 2 12 25 . 11 3 10 . . . . . . . . . . . . . Cannon 114 | . . . . . . . . . . . . . . . . . . . . 13 45 13 7 16 6 3 . 5 6 Launcher 37 | . . . . 2 . . . . . 1 . . . . . 4 12 . . . 17 . . . . . . . 1 Special 26 | . 4 . . . . . . 2 . . . . . . 1 . . . . 2 16 . . . 1 . . . . Kinetic 875 | 19 68 305 15 255 105 5 . 27 . 2 12 25 . 11 3 10 . . . . . . . . . 3 . 5 5 Thermal 188 | 13 72 3 . . . . . . . . . . . . . . . . . 13 45 13 7 16 6 . . . . Explosive 37 | . . . . 2 . . . . . 1 . . . . . 4 12 . . . 17 . . . . . . . 1 Electromagnetic 1 | . . . . . . . . . . . . . . . . . . . . . . . . . . . . . 1 Robot Hit Streak 13 | 7 8 12 5 12 13 1 . 5 . . . 4 . . 1 1 2 . . 4 9 5 2 5 6 . . . 7 Robot Miss Streak 6 | 2 4 5 1 6 2 4 . 2 . 1 . 3 . . . 5 3 . . . 4 1 1 1 . . . . . Penetration Max 1 | . . . . 1 . . . . . . . . . . . . . . . . . . . . . . . . . Secondary Targets 12 | . 2 4 . 5 1 . . . . . . . . . . . . . . . . . . . . . . . . Max Gunslinging Chain 1 | . 1 1 . 1 1 . . . . . . . . . . . . . . . . . . . . . . . . Shots Hit Robots 722 | 22 80 203 11 155 67 8 . 24 . 18 . 12 . . 7 3 5 2 3 3 50 10 4 13 18 1 2 . 1 Core Hits 352 | 8 36 80 5 63 27 4 . 12 . 4 . . . . . 7 18 1 . . 40 4 3 26 10 . 1 . 3 Critical Kills 8 | . . 3 1 1 . . . . . . . . . . . . . . . 1 . 2 . . . . . . . Critical Parts Destroyed 13 | . . . . 3 1 1 . 2 . 3 . 1 . . . . . . . . . . . 2 . . . . . Critical Strikes 23 | . . 4 1 4 1 1 . 2 . 3 . 1 . . . . . . . 1 . 2 . 2 1 . . . . Meltdown 4 | . . . 1 . . . . . . . . . . . . . . . . 1 . 2 . . . . . . . Destroy 7 | . . 4 . 2 1 . . . . . . . . . . . . . . . . . . . . . . . . Smash 11 | . . . . 2 . 1 . 2 . 3 . 1 . . . . . . . . . . . 2 . . . . . Sever 1 | . . . . . . . . . . . . . . . . . . . . . . . . . 1 . . . . Melee Attacks 299 | . . . . 7 23 7 . 26 . 63 3 6 . 11 25 8 2 2 10 21 11 . . 12 40 8 9 3 2 Impact 245 | . . . . 7 23 7 . 26 . 63 3 6 . 11 25 8 2 2 10 21 11 . . 12 8 . . . . Slashing 54 | . . . . . . . . . . . . . . . . . . . . . . . . . 32 8 9 3 2 Piercing . | . . . . . . . . . . . . . . . . . . . . . . . . . . . . . . Sneak Attacks 43 | . . . . 5 1 6 . 1 . 9 . . . . 4 . . . 1 . 2 . . 4 7 1 2 . . Combat Hostiles 1 | . . . . . . . . . . . . . . . . . . . . . 1 . . . . . . . . Follow-up Attacks 2 | . . . . . . . . . . . . . . . . . . . . . . . . . 2 . . . . Damage Inflicted 22556 | 207 1003 2142 283 3702 1529 433 . 680 . 1283 . 36 . . 469 681 1368 233 227 35 3338 399 143 1567 2091 163 340 . 204 Guns 7765 | 207 966 2142 183 2805 1060 34 . 304 . 16 . . . . . 48 . . . . . . . . . . . . . Cannons 2066 | . . . 100 . . . . . . . . . . . . . . . . 35 1023 399 143 178 . . . . 188 Explosions 5763 | . . . . 451 346 . . . . . . . . . . 512 1368 . . . 1925 . . 885 260 . . . 16 Melee 6915 | . . . . 436 123 399 . 376 . 1267 . 36 . . 469 121 . 233 227 . 390 . . 504 1831 163 340 . . Ramming 47 | . 37 . . 10 . . . . . . . . . . . . . . . . . . . . . . . . . Kinetic 7295 | 107 442 2108 183 2805 1060 34 . 304 . 16 . . . . . 48 . . . . . . . . . . . . 188 Thermal 2897 | 100 524 34 100 47 . . . . . . . . . . . . . . . 35 1337 399 143 178 . . . . . Explosive 4517 | . . . . 404 346 . . . . . . . . . . 512 1368 . . . 1611 . . . 260 . . . 16 Electromagnetic 885 | . . . . . . . . . . . . . . . . . . . . . . . . 885 . . . . . Impact 4785 | . . . . 436 123 399 . 376 . 1267 . 36 . . 469 121 . 233 227 . 390 . . 504 204 . . . . Slashing 2130 | . . . . . . . . . . . . . . . . . . . . . . . . . 1627 163 340 . . Piercing . | . . . . . . . . . . . . . . . . . . . . . . . . . . . . . . Highest Corruption 19 | . . . . 8 19 . . . 10 11 10 10 . . 1 1 17 17 17 . . . . 2 7 5 . . 4 Average Corruption 7 | . . . . 8 9 . . . 10 8 10 10 . . 1 1 7 17 17 . . . . 2 4 5 . . 3 Corruption Purged . | . . . . . . . . . . . . . . . . . . . . . . . . . . . . . . Corruption Blocked . | . . . . . . . . . . . . . . . . . . . . . . . . . . . . . . Effects 101 | . . . . 3 25 . . . . 35 2 12 . . 1 . 7 3 5 . . . . 1 4 1 . . 2 Message Errors 21 | . . . . 2 6 . . . . 9 1 . . . . . 1 . 1 . . . . . 1 . . . . Matter Fused 22 | . . . . . 11 . . . . 3 . 2 . . 1 . 1 1 1 . . . . 1 1 . . . . Heat Flow Errors 8 | . . . . . 2 . . . . 4 . 1 . . . . . . . . . . . . . . . . 1 Energy Discharges 14 | . . . . . . . . . . 2 1 5 . . . . 3 1 2 . . . . . . . . . . Parts Rejected 1 | . . . . . . . . . . 1 . . . . . . . . . . . . . . . . . . . Parts Fused 2 | . . . . . . . . . . 1 . 1 . . . . . . . . . . . . . . . . . Data Loss (minor) 12 | . . . . . 2 . . . . 6 . . . . . . 1 . 1 . . . . . 1 1 . . . Data Loss (major) 8 | . . . . 1 . . . . . 4 . . . . . . . 1 . . . . . . 1 . . . 1 Misfires 4 | . . . . . . . . . . 2 . 2 . . . . . . . . . . . . . . . . . Alerts 2 | . . . . . 1 . . . . . . 1 . . . . . . . . . . . . . . . . . Misdirections 3 | . . . . . . . . . . 3 . . . . . . . . . . . . . . . . . . . Weapon Failures 4 | . . . . . 3 . . . . . . . . . . . 1 . . . . . . . . . . . . Overload Shots . | . . . . . . . . . . . . . . . . . . . . . . . . . . . . . . Overflow Damage 2866 | . . . 10 369 103 104 . 117 . 617 . 36 . . 294 32 110 79 57 . 93 . . 197 378 133 137 . . Projectiles 35 | . . . 10 . . . . . . 17 . . . . . . . . . . 8 . . . . . . . . Explosions 201 | . . . . . 20 . . . . . . . . . . 32 110 . . . 37 . . 2 . . . . . Melee 2630 | . . . . 369 83 104 . 117 . 600 . 36 . . 294 . . 79 57 . 48 . . 195 378 133 137 . . Knockbacks 20 | . . . . 1 1 1 . . . 9 . . . . 3 . . . 1 . 1 . . . 2 . . . 1 Impact 17 | . . . . 1 1 1 . . . 7 . . . . 3 . . . 1 . 1 . . . 2 . . . . Kinetic 1 | . . . . . . . . . . . . . . . . . . . . . . . . . . . . . 1 Secondary 2 | . . . . . . . . . . 2 . . . . . . . . . . . . . . . . . . . Self-Inflicted Damage 603 | . . . . . 68 . . . . . . . . . . . 111 . . . 126 . . 188 72 . . . 38 Shots 12 | . . . . . 1 . . . . . . . . . . . 2 . . . 5 . . 2 1 . . . 1 Rammed 10 | . 10 . . . . . . . . . . . . . . . . . . . . . . . . . . . . Targets Rammed 16 | . 12 . . 3 1 . . . . . . . . . . . . . . . . . . . . . . . . Kicked 4 | . . . . 3 1 . . . . . . . . . . . . . . . . . . . . . . . . Crushed 2 | . 2 . . . . . . . . . . . . . . . . . . . . . . . . . . . . Highest Temperature 467 | 60 335 337 54 36 220 18 . 58 . 281 . 74 . 7 410 72 26 . . 188 467 292 14 14 13 . . . 16 Average Temperature 76 | 25 101 76 19 9 66 13 . 19 . 117 . 32 . 6 42 28 13 . . 54 145 151 5 7 13 . . . 16 Received Heat Transfer 2542 | . 444 525 33 648 171 18 . 45 . 75 9 . . 18 18 . 102 . . 9 27 18 18 18 85 9 18 9 225 Effects 10 | . 1 . . . . . . . . . . . . . 2 . . . . . 6 1 . . . . . . . Shutdowns 1 | . . . . . . . . . . . . . . . . . . . . . 1 . . . . . . . . Energy Bleed 3 | . 1 . . . . . . . . . . . . . . . . . . . 2 . . . . . . . . Interference 3 | . . . . . . . . . . . . . . . 2 . . . . . . 1 . . . . . . . Matter Decay 1 | . . . . . . . . . . . . . . . . . . . . . 1 . . . . . . . . Short Circuit 1 | . . . . . . . . . . . . . . . . . . . . . 1 . . . . . . . . Damage (minor) 1 | . . . . . . . . . . . . . . . . . . . . . 1 . . . . . . . . Siege Activations . | . . . . . . . . . . . . . . . . . . . . . . . . . . . . . . Martial Activations . | . . . . . . . . . . . . . . . . . . . . . . . . . . . . . . Shielding Activations . | . . . . . . . . . . . . . . . . . . . . . . . . . . . . . . Robots Disrupted . | . . . . . . . . . . . . . . . . . . . . . . . . . . . . . . Combat Hostiles . | . . . . . . . . . . . . . . . . . . . . . . . . . . . . . . Robots Corrupted 28 | . . . . 3 1 3 . 2 . 6 . 1 . . 4 . . . 1 . 1 . . 3 3 . . . . Combat Hostiles 3 | . . . . . . 1 . . . . . 1 . . . . . . . . 1 . . . . . . . . Parts Fried 60 | . . . . 3 1 6 . 3 . 22 . 4 . . 4 . . 2 . . 2 . . 9 4 . . . . Impact Corruptions 70 | . . . . 9 3 4 . 4 . 24 . 1 . . 9 . . 2 3 . 1 . . 4 6 . . . . Robots Melted 4 | . . . 1 . . . . . . . . . . . . . . . . 1 . 2 . . . . . . . Combat Hostiles 2 | . . . 1 . . . . . . . . . . . . . . . . . . 1 . . . . . . . Parts Melted 9 | . . 1 2 1 . 1 . . . . . . . . . . . . . 1 . 2 . 1 . . . . . Heat Transferred 3475 | 225 1175 75 50 50 . . . . . . . . . . . . . . . 37 1123 407 148 185 . . . . . Parts Sabotaged . | . . . . . . . . . . . . . . . . . . . . . . . . . . . . . . Parts Stolen . | . . . . . . . . . . . . . . . . . . . . . . . . . . . . . . Parts Stripped . | . . . . . . . . . . . . . . . . . . . . . . . . . . . . . . Power Chain Reactions 3 | . . . . . . . . . . 2 . . . . . . . . . . . . . 1 . . . . . Alert | -11 -10 -9 -9 -8 -8 -8 -8 -6 -6 -6 -6 -6 -6 -5 -5 -5 -5 -5 -4 -4 -4 -4 -4 -4 -3 -3 -2 -2 -2 ------- Run | Yrd Mat Mat Min Mat Sto Rec Scr Fac Was Fac Low Low Dat Pro Fac Upp Upp Zhi Pro Fac Ext Cet Arc Hub Res Tes Res Qua Frg Maximum Alert Level 4 | . . 2 1 2 3 1 . . . 1 . . . . . . . . . . 3 2 1 4 4 3 2 2 2 Low Security (%) 53 | 100 100 28 80 79 7 . . 100 100 84 . . . . 100 . . . . 100 20 . 16 48 . . . . 13 Level 1 21 | . . 31 19 12 22 100 . . . 15 . . . . . . . . . . 37 4 83 23 . . 8 57 54 Level 2 16 | . . 40 . 7 61 . . . . . . . . . . . . . . . 19 95 . . . 52 91 42 32 Level 3 6 | . . . . . 8 . . . . . . . . . . . . . . . 22 . . 17 59 47 . . . Level 4 2 | . . . . . . . . . . . . . . . . . . . . . . . . 10 40 . . . . Level 5 . | . . . . . . . . . . . . . . . . . . . . . . . . . . . . . . High Security . | . . . . . . . . . . . . . . . . . . . . . . . . . . . . . . Max Security . | . . . . . . . . . . . . . . . . . . . . . . . . . . . . . . Sterilizations 1 | . . . . . . . . 1 . . . . . . . . . . . . . . . . . . . . . Peak Influence 1413 | 10 88 530 231 445 732 395 . 56 . 365 . . . . 133 . . . . 96 780 534 356 1413 1214 716 645 441 498 Initial 718 | . . . 201 13 178 280 . . . . . . . . 9 . . . . 31 46 380 165 114 718 673 387 362 221 Average 257 | 1 25 313 141 129 527 312 . 19 . 60 . . . . 48 . . . . 54 414 473 290 450 946 692 562 397 289 Influence Increases 11299 | 20 405 1124 82 916 984 387 . 381 . 715 30 . . 60 372 160 240 10 80 244 1230 174 231 1555 866 96 368 102 467 Destroy 0b10 Robot/C 3140 | . 280 500 60 540 240 120 . 140 . 40 . . . . . 100 160 . . . 480 80 80 200 120 . . . . Destroy 0b10 Robot/NC 560 | 20 20 55 10 95 50 25 . 25 . 55 . . . . 25 5 . 10 5 5 30 5 . 65 40 5 10 . . Destroy Leader 652 | . 66 172 10 104 82 . . 26 . 12 . . . . 2 10 20 . . 2 82 . . 48 16 . . . . Allied During Kill 803 | . . . 2 4 55 91 . 24 . . . . . . . . . . . . 220 85 80 232 10 . . . . Successful Hack 397 | . 34 24 . 20 23 . . 50 . 38 . . . . 38 . . . . 20 22 . . 14 44 . 46 . 24 Select Force Hacks 200 | . . . . . . 150 . . . 50 . . . . . . . . . . . . . . . . . . . Disable Machine 675 | . . . . 30 120 . . 60 . 15 . . . . 30 . . . . 15 90 . 45 225 15 . . 30 . Destroy Structure 1223 | . 5 . . 48 32 1 . 11 . 40 . . . . 34 . . . . 52 306 4 26 516 84 16 21 12 15 Partial Spotted 375 | . . . . . . . . 30 . 90 . . . . 45 . . . . 75 . . . 30 75 . 15 15 . Lose Combat Pursuer 1470 | . . 15 . 75 30 . . 15 . 195 30 . . 60 90 45 60 . 75 75 . . . 225 90 75 90 45 180 Miscellaneous 1804 | . . 358 . . 352 . . . . 180 . . . . 108 . . . . . . . . . 372 . 186 . 248 Influence Decreases 10901 | 20 405 606 565 528 687 826 281 379 2 478 179 88 . 45 240 156 200 201 30 199 645 440 319 512 1037 605 412 353 463 Entered New Map 4459 | . . . 317 22 245 440 281 . 2 . 89 17 . . 6 56 30 191 . 19 49 300 249 212 651 525 302 283 173 Time Decay 5037 | 20 396 466 238 444 392 356 . 244 . 309 90 71 . 35 224 90 100 10 30 180 386 140 40 140 286 70 90 40 150 Search Patrol Dispatched 200 | . . 100 . . . . . . . 100 . . . . . . . . . . . . . . . . . . . Lost Part 554 | . 9 40 10 33 30 . . . . 52 . . . 10 . 10 70 . . . 20 . 10 20 40 10 20 30 140 Lost Ally 501 | . . . . 29 20 30 . 135 . 17 . . . . 10 . . . . . 40 . 20 140 60 . . . . Purge Threat 150 | . . . . . . . . . . . . . . . . . . . . . 150 . . . . . . . . Squads Dispatched 88 | . 3 4 . 4 1 . . 7 . 20 . . . 1 8 . . . . 6 2 . . 8 13 1 2 1 7 Investigation 36 | . 2 . . . . . . 5 . 8 . . . . 5 . . . . 5 2 . . 2 4 . 1 . 2 Extermination 13 | . . . . . . . . 1 . 4 . . . . 2 . . . . 1 . . . . 2 1 1 . 1 Reinforcement 29 | . 1 3 . 3 1 . . 1 . 6 . . . . 1 . . . . . . . . 4 7 . . 1 1 Assault 6 | . . 1 . 1 . . . . . 2 . . . 1 . . . . . . . . . 1 . . . . . Garrison 4 | . . . . . . . . . . . . . . . . . . . . . . . . 1 . . . . 3 Intercept . | . . . . . . . . . . . . . . . . . . . . . . . . . . . . . . Searches Triggered 2 | . . 1 . . . . . . . 1 . . . . . . . . . . . . . . . . . . . Data Miner Redirects 2 | . . . . . . . . . . . . . . . . . . . . 1 . . . . 1 . . . . Construction Impeded 3 | . . . . 1 1 . . . . . . . . . . . . . . . . . . 1 . . . . . Haulers Reinforced 2 | . . . . . . . . 1 . . . . . . . . . . . . . . . 1 . . . . . Active Scanning Responses . | . . . . . . . . . . . . . . . . . . . . . . . . . . . . . . Cargo Convoy Interrupts . | . . . . . . . . . . . . . . . . . . . . . . . . . . . . . . Stealth | -11 -10 -9 -9 -8 -8 -8 -8 -6 -6 -6 -6 -6 -6 -5 -5 -5 -5 -5 -4 -4 -4 -4 -4 -4 -3 -3 -2 -2 -2 --------- Run | Yrd Mat Mat Min Mat Sto Rec Scr Fac Was Fac Low Low Dat Pro Fac Upp Upp Zhi Pro Fac Ext Cet Arc Hub Res Tes Res Qua Frg Distress Signals 36 | . 4 2 . 2 1 . . 3 . 2 . . . . 1 . . . . . 4 1 . 6 3 2 1 . 4 Communications Jammed 42 | . . . . . . . . 31 . 11 . . . . . . . . . . . . . . . . . . . Distress Signals 41 | . . . . . . . . 31 . 10 . . . . . . . . . . . . . . . . . . . Times Spotted 491 | . 27 34 7 48 16 5 . 28 3 54 2 1 . 10 20 12 13 . 4 8 22 5 4 16 47 13 26 9 57 Peak Tracking Total 24 | . 4 6 3 7 4 1 . 11 3 10 2 1 . 12 10 8 5 . 5 3 4 5 2 18 9 8 18 4 24 Tactical Retreats 58 | . . 1 . 3 2 . . 1 . 15 1 . . 3 2 1 3 . 2 4 . . . 3 6 2 4 1 4 ECM-based Alert Blocks 30 | . . . . . . . . . . 16 . . . . . . . . . . . . . . 12 . 2 . . Traps | -11 -10 -9 -9 -8 -8 -8 -8 -6 -6 -6 -6 -6 -6 -5 -5 -5 -5 -5 -4 -4 -4 -4 -4 -4 -3 -3 -2 -2 -2 ------- Run | Yrd Mat Mat Min Mat Sto Rec Scr Fac Was Fac Low Low Dat Pro Fac Upp Upp Zhi Pro Fac Ext Cet Arc Hub Res Tes Res Qua Frg Traps Triggered 19 | . 3 2 1 1 2 . . 1 . 2 . . . . 1 . . . . 1 3 . . . . . . . 2 Indirectly . | . . . . . . . . . . . . . . . . . . . . . . . . . . . . . . Trap Hack Attempts . | . . . . . . . . . . . . . . . . . . . . . . . . . . . . . . Triggered . | . . . . . . . . . . . . . . . . . . . . . . . . . . . . . . Disarmed . | . . . . . . . . . . . . . . . . . . . . . . . . . . . . . . Reprogrammed . | . . . . . . . . . . . . . . . . . . . . . . . . . . . . . . Reused . | . . . . . . . . . . . . . . . . . . . . . . . . . . . . . . Traps Extracted . | . . . . . . . . . . . . . . . . . . . . . . . . . . . . . . Installed . | . . . . . . . . . . . . . . . . . . . . . . . . . . . . . . Triggered . | . . . . . . . . . . . . . . . . . . . . . . . . . . . . . . Machines | -11 -10 -9 -9 -8 -8 -8 -8 -6 -6 -6 -6 -6 -6 -5 -5 -5 -5 -5 -4 -4 -4 -4 -4 -4 -3 -3 -2 -2 -2 ---------- Run | Yrd Mat Mat Min Mat Sto Rec Scr Fac Was Fac Low Low Dat Pro Fac Upp Upp Zhi Pro Fac Ext Cet Arc Hub Res Tes Res Qua Frg Machines Disabled 46 | . . 1 . 2 8 . . 4 . 1 . . . . 2 . . . . 1 6 . 3 15 1 . . 2 . Max in Single Turn 12 | . . 1 . 1 1 . . 1 . 1 . . . . 1 . . . . 1 4 . . 12 . . . 1 . Garrison Access 3 | . . . . 1 . . . . . 1 . . . . . . . . . . . . . . 1 . . . . Network Hub 2 | . . . . . . . . . . . . . . . . . . . . . . . . 2 . . . . . Energy Cycler 3 | . . . . . . . . . . . . . . . . . . . . . 3 . . . . . . . . Machines Repaired . | . . . . . . . . . . . . . . . . . . . . . . . . . . . . . . Machines Dismantled . | . . . . . . . . . . . . . . . . . . . . . . . . . . . . . . Machines Sabotaged . | . . . . . . . . . . . . . . . . . . . . . . . . . . . . . . Overloaded Fab Kills 4 | . . . . . . . . . . 4 . . . . . . . . . . . . . . . . . . . Hacking | -11 -10 -9 -9 -8 -8 -8 -8 -6 -6 -6 -6 -6 -6 -5 -5 -5 -5 -5 -4 -4 -4 -4 -4 -4 -3 -3 -2 -2 -2 --------- Run | Yrd Mat Mat Min Mat Sto Rec Scr Fac Was Fac Low Low Dat Pro Fac Upp Upp Zhi Pro Fac Ext Cet Arc Hub Res Tes Res Qua Frg Machines Accessed 120 | . 6 5 1 6 4 5 . 13 . 15 1 2 4 . 12 . 1 7 . 9 4 1 . 3 11 . 7 . 3 Terminals 56 | . 5 5 . 4 4 . . 6 . 5 . . . . 6 . 1 . . 5 3 1 . 3 3 . 4 . 1 Fabricators 5 | . . . . . . . . 1 . 2 . . . . 1 . . . . . . . . . . . 1 . . Repair Stations . | . . . . . . . . . . . . . . . . . . . . . . . . . . . . . . Recycling Units 33 | . 1 . . . . 5 . 5 . 6 . . . . 5 . . . . 4 1 . . . 4 . 1 . 1 Scanalyzers 7 | . . . . 1 . . . 1 . 1 . . . . . . . . . . . . . . 3 . 1 . . Garrison Access 4 | . . . . 1 . . . . . 1 . . . . . . . . . . . . . . 1 . . . 1 Total Hacks 302 | . 10 9 1 17 4 7 . 27 . 26 1 5 31 . 20 . 2 46 . 17 7 2 . 8 25 . 27 . 10 Successful 188 | . 7 6 1 13 4 5 . 12 . 10 1 5 31 . 9 . 2 46 . 10 5 . . 2 10 . 7 . 2 Failed 113 | . 3 3 . 4 . 2 . 14 . 16 . . . . 11 . . . . 7 2 2 . 6 15 . 20 . 8 Catastrophic 21 | . 1 1 . . . . . 2 . 5 . . . . 1 . . . . 1 . 1 . . 1 . 6 . 2 Database Lockouts 1 | . . . . . . . . 1 . . . . . . . . . . . . . . . . . . . . . Manual 110 | . 1 2 . 4 1 7 . 13 . 17 . . . . 15 . . . . 10 6 1 . 5 13 . 13 . 2 Terminals 123 | . 9 9 . 11 4 . . 14 . 10 . . . . 11 . 2 . . 10 5 2 . 8 9 . 16 . 3 Fabricators 7 | . . . . . . . . 2 . 3 . . . . 1 . . . . . . . . . . . 1 . . Repair Stations . | . . . . . . . . . . . . . . . . . . . . . . . . . . . . . . Recycling Units 56 | . 1 . . . . 7 . 7 . 11 . . . . 8 . . . . 7 2 . . . 7 . 4 . 2 Scanalyzers 23 | . . . . 5 . . . 4 . 1 . . . . . . . . . . . . . . 7 . 6 . . Garrison Access 9 | . . . . 1 . . . . . 1 . . . . . . . . . . . . . . 2 . . . 5 Terminal Hacks 133 | . 7 5 1 7 4 . . 5 . 2 1 5 31 . 3 . 2 46 . 6 1 . . 1 2 . 3 . 1 Record 51 | . . . . . . . . . . . . 4 11 . . . 2 34 . . . . . . . . . . . Part Schematic 17 | . . . . . . . . . . . . . 13 . . . . 4 . . . . . . . . . . . Robot Schematic 4 | . . . . . . . . . . . . . 4 . . . . . . . . . . . . . . . . Robot Analysis 4 | . . . . . . . . . . . . . . . . . . 4 . . . . . . . . . . . Prototype ID Bank 8 | . 1 . . . . . . . . . . . 3 . . . . 4 . . . . . . . . . . . Open Door 9 | . . . 1 . 4 . . . . . 1 1 . . . . . . . 1 . . . . . . 1 . . Branch Access Points 4 | . . 1 . 1 . . . . . 1 . . . . . . . . . . . . . . . . 1 . . Recycling Unit Index 1 | . . . . . . . . 1 . . . . . . . . . . . . . . . . . . . . . Unreport Threat 1 | . . . . . . . . . . . . . . . . . . . . . 1 . . . . . . . . Locate Traps 8 | . 3 2 . 1 . . . 1 . . . . . . . . . . . 1 . . . . . . . . . Hauler Manifests 5 | . 1 1 . 2 . . . . . . . . . . 1 . . . . . . . . . . . . . . Registered Components 7 | . 1 1 . 1 . . . 1 . . . . . . 1 . . . . 1 . . . . 1 . . . . Registered Prototypes 1 | . . . . . . . . . . . . . . . . . . . . 1 . . . . . . . . . Zone Layout 13 | . 1 . . 2 . . . 2 . 1 . . . . 1 . . . . 2 . . . 1 1 . 1 . 1 Fabricator Hacks 1 | . . . . . . . . . . . . . . . . . . . . . . . . . . . 1 . . Network Status 1 | . . . . . . . . . . . . . . . . . . . . . . . . . . . 1 . . Repair Station Hacks . | . . . . . . . . . . . . . . . . . . . . . . . . . . . . . . Recycling Unit Hacks . | . . . . . . . . . . . . . . . . . . . . . . . . . . . . . . Scanalyzer 9 | . . . . 3 . . . 3 . . . . . . . . . . . . . . . . 2 . 1 . . Insert Component 2 | . . . . 1 . . . 1 . . . . . . . . . . . . . . . . . . . . . Analyze 2 | . . . . 1 . . . 1 . . . . . . . . . . . . . . . . . . . . . Retrieve Study 5 | . . . . 1 . . . 1 . . . . . . . . . . . . . . . . 2 . 1 . . Garrison Access Hacks 2 | . . . . 1 . . . . . . . . . . . . . . . . . . . . 1 . . . . Seal Access 2 | . . . . 1 . . . . . . . . . . . . . . . . . . . . 1 . . . . Unauthorized Hacks 43 | . . 1 . 2 . 5 . 4 . 8 . . . . 6 . . . . 4 4 . . 1 5 . 2 . 1 Terminals 14 | . . 1 . 2 . . . . . 3 . . . . 2 . . . . . 3 . . 1 1 . 1 . . Assimilate 7 | . . . . 1 . . . . . 2 . . . . . . . . . . 3 . . . 1 . . . . Botnet 6 | . . 1 . 1 . . . . . 1 . . . . 2 . . . . . . . . . . . 1 . . Sabotage 1 | . . . . . . . . . . . . . . . . . . . . . . . . 1 . . . . . Fabricators 1 | . . . . . . . . . . 1 . . . . . . . . . . . . . . . . . . . Overload 1 | . . . . . . . . . . 1 . . . . . . . . . . . . . . . . . . . Repair Stations . | . . . . . . . . . . . . . . . . . . . . . . . . . . . . . . Recycling Units 28 | . . . . . . 5 . 4 . 4 . . . . 4 . . . . 4 1 . . . 4 . 1 . 1 Tunnel 5 | . . . . . . 5 . . . . . . . . . . . . . . . . . . . . . . . Fedlink 23 | . . . . . . . . 4 . 4 . . . . 4 . . . . 4 1 . . . 4 . 1 . 1 Scanalyzers . | . . . . . . . . . . . . . . . . . . . . . . . . . . . . . . Garrison Access . | . . . . . . . . . . . . . . . . . . . . . . . . . . . . . . Data Cores Recovered 4 | . . . . 1 1 . . . . 1 . . . . . . . . . . . . . . 1 . . . . Used 1 | . . . . . . . . . . 1 . . . . . . . . . . . . . . . . . . . Hacking Detections 62 | . 3 3 . 2 2 1 . 8 . 11 . . . . 8 . . . . 5 2 1 . 3 6 . 5 . 2 Full Trace Events 6 | . . . . . . . . 1 . 2 . . . . 1 . . . . . . . . 1 . . . . 1 Feedback Events . | . . . . . . . . . . . . . . . . . . . . . . . . . . . . . . Feedback Blocked . | . . . . . . . . . . . . . . . . . . . . . . . . . . . . . . Robot Schematics Acquired 4 | . . . . . . . . . . . . . 4 . . . . . . . . . . . . . . . . Robots Built . | . . . . . . . . . . . . . . . . . . . . . . . . . . . . . . Authchips . | . . . . . . . . . . . . . . . . . . . . . . . . . . . . . . Time . | . . . . . . . . . . . . . . . . . . . . . . . . . . . . . . Total Robot Build Rating . | . . . . . . . . . . . . . . . . . . . . . . . . . . . . . . Part Schematics Acquired 19 | . . . . 1 . . . 1 . . . . 13 . . . . 4 . . . . . . . . . . . Parts Built . | . . . . . . . . . . . . . . . . . . . . . . . . . . . . . . Authchips . | . . . . . . . . . . . . . . . . . . . . . . . . . . . . . . Time . | . . . . . . . . . . . . . . . . . . . . . . . . . . . . . . Total Part Build Rating . | . . . . . . . . . . . . . . . . . . . . . . . . . . . . . . Part Studies Acquired 5 | . . . . 1 . . . 1 . . . . . . . . . . . . . . . . 2 . 1 . . Parts Repaired . | . . . . . . . . . . . . . . . . . . . . . . . . . . . . . . Time . | . . . . . . . . . . . . . . . . . . . . . . . . . . . . . . Parts Recycled . | . . . . . . . . . . . . . . . . . . . . . . . . . . . . . . Recycled Matter . | . . . . . . . . . . . . . . . . . . . . . . . . . . . . . . Retrieved Matter . | . . . . . . . . . . . . . . . . . . . . . . . . . . . . . . Retrieved Components . | . . . . . . . . . . . . . . . . . . . . . . . . . . . . . . Parts Scanalyzed 2 | . . . . 1 . . . 1 . . . . . . . . . . . . . . . . . . . . . Part Schematics Acquired 2 | . . . . 1 . . . 1 . . . . . . . . . . . . . . . . . . . . . Parts Damaged . | . . . . . . . . . . . . . . . . . . . . . . . . . . . . . . Bothacking | -11 -10 -9 -9 -8 -8 -8 -8 -6 -6 -6 -6 -6 -6 -5 -5 -5 -5 -5 -4 -4 -4 -4 -4 -4 -3 -3 -2 -2 -2 ------------ Run | Yrd Mat Mat Min Mat Sto Rec Scr Fac Was Fac Low Low Dat Pro Fac Upp Upp Zhi Pro Fac Ext Cet Arc Hub Res Tes Res Qua Frg Used RIF Installer . | . . . . . . . . . . . . . . . . . . . . . . . . . . . . . . Robots Hacked 5 | . . . . . . . . 1 . . . . . . 1 . . . . 2 . . . . 1 . . . . Non-combat 5 | . . . . . . . . 1 . . . . . . 1 . . . . 2 . . . . 1 . . . . Combat . | . . . . . . . . . . . . . . . . . . . . . . . . . . . . . . Robot Hacks Applied 5 | . . . . . . . . 1 . . . . . . 1 . . . . 2 . . . . 1 . . . . find_chute 3 | . . . . . . . . 1 . . . . . . 1 . . . . 1 . . . . . . . . . find_recycling 2 | . . . . . . . . . . . . . . . . . . . . 1 . . . . 1 . . . . Relay Couplers Released 2 | . . . . . . . . . . 2 . . . . . . . . . . . . . . . . . . . Machine Destruction 2 | . . . . . . . . . . 2 . . . . . . . . . . . . . . . . . . . Fabnet Peak Effective % . | . . . . . . . . . . . . . . . . . . . . . . . . . . . . . . Robots Rewired 16 | . . . . . . 6 . . . . . . . . . . . . . . 10 . . . . . . . . Allies Hacked . | . . . . . . . . . . . . . . . . . . . . . . . . . . . . . . Hacks Repelled . | . . . . . . . . . . . . . . . . . . . . . . . . . . . . . . Allies | -11 -10 -9 -9 -8 -8 -8 -8 -6 -6 -6 -6 -6 -6 -5 -5 -5 -5 -5 -4 -4 -4 -4 -4 -4 -3 -3 -2 -2 -2 -------- Run | Yrd Mat Mat Min Mat Sto Rec Scr Fac Was Fac Low Low Dat Pro Fac Upp Upp Zhi Pro Fac Ext Cet Arc Hub Res Tes Res Qua Frg Total Allies 43 | . . . 3 . 10 6 . . 1 3 . . . . . . . . . . 13 5 . . 2 . . . . Largest Group 14 | . . . 3 2 10 14 12 12 1 1 . . . . . . . . . . 9 13 13 12 1 . . . . Highest-Rated Group 822 | . . . 76 45 173 232 200 200 31 41 . . . . . . . . . . 444 822 784 738 89 . . . . Highest-Rated Ally 153 | . . . 31 31 29 29 29 29 31 41 . . . . . . . . . . 153 140 96 96 89 . . . . Initial UFD Resources 128 | . . . . . . . . 23 41 41 49 49 49 52 52 70 70 70 74 74 92 94 94 94 96 114 118 128 128 Total Orders 10 | . . . . . . . . . . . 4 2 . . 2 . . . . . . . . 1 1 . . . . STAY 1 | . . . . . . . . . . . . . . . . . . . . . . . . 1 . . . . . EXPLORE 8 | . . . . . . . . . . . 3 2 . . 2 . . . . . . . . . 1 . . . . RETURN 1 | . . . . . . . . . . . 1 . . . . . . . . . . . . . . . . . . Ally Attacks 396 | . . . 2 10 16 44 . 53 6 5 . . . . . . . . . . 109 33 36 76 6 . . . . Total Damage 10688 | . . . 42 175 250 438 . 805 64 175 . . . . . . . . . . 2682 772 929 3659 697 . . . . Kills 52 | . . . 1 1 3 4 . 5 . 1 . . . . . . . . . . 15 3 4 13 2 . . . . Allies Corrupted 3 | . . . . . . . . . . 1 . . . . 1 . . . . . . . . . 1 . . . . Allies Melted 1 | . . . . . . . . . . . . . . . . . . . . . . 1 . . . . . . . X0-1V1 Amusement Gains 324 | . 18 5 30 10 20 . . . . 25 . . . . . . 20 . . . 40 . . 35 15 . 15 . 91 Good Acts 140 | . . 4 2 9 6 2 . 5 . 18 2 3 . 6 7 . 1 . 4 7 17 2 . . 18 3 4 5 15 Bad Acts 118 | . . 8 1 9 6 4 . 14 . 13 2 1 . . 3 9 4 . 1 3 5 1 . 2 21 2 5 . 4 Intel | -11 -10 -9 -9 -8 -8 -8 -8 -6 -6 -6 -6 -6 -6 -5 -5 -5 -5 -5 -4 -4 -4 -4 -4 -4 -3 -3 -2 -2 -2 ------- Run | Yrd Mat Mat Min Mat Sto Rec Scr Fac Was Fac Low Low Dat Pro Fac Upp Upp Zhi Pro Fac Ext Cet Arc Hub Res Tes Res Qua Frg Active Infowar (turns) 10773 | 51 978 22 291 261 456 804 907 590 23 1121 193 417 28 239 519 184 209 80 90 379 912 291 86 282 627 149 182 97 305 Optics 6989 | . . . . . . . . 576 23 1121 193 417 28 239 519 184 209 80 90 379 912 291 86 282 627 149 182 97 305 Sensors 8108 | . . . . . 456 804 907 589 23 719 47 244 28 239 519 184 193 80 90 379 912 42 54 256 614 149 182 97 301 Structural 58 | . 58 . . . . . . . . . . . . . . . . . . . . . . . . . . . . Seismic 1551 | 51 920 22 291 261 . . . . . 2 4 . . . . . . . . . . . . . . . . . . Jamming 1270 | . . . . . . . . 568 23 679 . . . . . . . . . . . . . . . . . . . ECM 506 | . . . . . . . . 1 . 357 . . . . . . . . . . . . . . 127 . 21 . . Robot Analysis Total 4 | . . . . . . . . . . . . . . . . . . 4 . . . . . . . . . . . Derelict Logs Recovered 8 | . . . 1 . . . . . . . 1 3 . 1 . . 2 . . . . . . . . . . . . Drone Launches 10 | . . . . . . . . . . . 4 2 . . 2 . . . . . . . . . 2 . . . . Drone Recoveries 7 | . . . . . . . . . . . 4 2 . . 1 . . . . . . . . . . . . . . Exploration | -11 -10 -9 -9 -8 -8 -8 -8 -6 -6 -6 -6 -6 -6 -5 -5 -5 -5 -5 -4 -4 -4 -4 -4 -4 -3 -3 -2 -2 -2 ------------- Run | Yrd Mat Mat Min Mat Sto Rec Scr Fac Was Fac Low Low Dat Pro Fac Upp Upp Zhi Pro Fac Ext Cet Arc Hub Res Tes Res Qua Frg Turns Passed 14520 | 174 1641 1267 512 1268 930 804 907 590 23 1121 193 417 28 239 533 184 209 80 90 379 912 291 86 282 627 149 182 97 305 Spaces Moved 17283 | 75 833 647 346 650 573 562 722 1276 81 2055 304 384 101 439 982 399 505 169 206 770 1108 201 48 434 1401 418 524 234 836 Core 32 | 4 . . . . . . . . . . . . . . . . . . . . . . . . 13 . . . 15 Treads 913 | 71 833 8 . . . . . . . . . . . . . . . . . 1 . . . . . . . . . Legs 3492 | . . 639 346 650 573 562 722 . . . . . . . . . . . . . . . . . . . . . . Wheels . | . . . . . . . . . . . . . . . . . . . . . . . . . . . . . . Hover . | . . . . . . . . . . . . . . . . . . . . . . . . . . . . . . Flight 12846 | . . . . . . . . 1276 81 2055 304 384 101 439 982 399 505 169 206 769 1108 201 48 434 1388 418 524 234 821 Fastest Speed 13 | 50 160 120 120 112 112 116 118 24 27 27 27 27 27 27 31 31 31 34 34 15 15 17 17 19 18 18 23 25 13 Average Speed 51 | 154 160 130 135 124 116 117 118 25 27 27 27 27 27 27 31 31 31 34 34 25 16 17 18 19 21 19 24 26 21 Slowest Speed 190 | 160 160 190 190 190 185 118 122 28 27 27 27 27 27 31 31 31 34 34 34 160 17 17 19 23 100 23 25 29 50 Overloaded Moves 24 | . . . . . . . . . . . . . . . . . . . . . . . . . . . . . 24 Propulsion Burnouts . | . . . . . . . . . . . . . . . . . . . . . . . . . . . . . . Robots Hopped 101 | . . . . . . . . 5 . 9 2 1 . . 18 . . . . 1 6 . . 12 13 9 11 . 14 Potential Cave-ins 13 | . . . . . . . . . . . . . . . . 4 2 . . 2 . . . . 5 . . . . Cave-ins Triggered . | . . . . . . . . . . . . . . . . . . . . . . . . . . . . . . Teleports 1 | . . . . . . . . . . . . . . . . . . . . . . . . . . . . . 1 Exploration Rate (%) 60 | 5 94 63 65 71 68 94 74 40 79 55 81 62 74 74 41 63 62 63 55 26 88 63 80 51 51 65 19 40 48 Regions Visited 29 Branch Regions 19 Pre-discovered Areas 13 | . . . 1 . . 5 . 1 . . . 1 1 . . . 1 3 . . . . . . . . . . . Known Exits Taken 25 | . . 1 1 1 1 1 1 . . 1 1 1 1 1 1 1 1 1 1 1 1 1 1 1 1 1 1 1 . Unknown Exits Taken 2 | 1 1 . . . . . . . . . . . . . . . . . . . . . . . . . . . . Scrap Searched 17 | . . . 1 . . . 5 . . . 1 2 . 1 . 1 5 . 1 . . . . . . . . . . Spaces Dug 188 | . 3 . . 3 6 . . 11 . 34 5 5 . 23 17 7 2 . 3 25 . . . 6 17 8 7 4 2 Terrain Destroyed 1153 | . 4 . . 49 28 . . 11 . 48 5 9 . 30 17 59 139 . 3 32 323 . 2 324 49 8 7 4 2 Melee 152 | . . . . 2 6 . . 11 . 34 3 5 . 11 15 7 2 . 3 20 . . . 1 14 6 7 3 2 Projectile 90 | . 4 . . 14 . . . . . . . . . 19 2 8 . . . 12 14 . 2 6 6 2 . 1 . AOE 905 | . . . . 33 22 . . . . 14 . . . . . 44 137 . . . 309 . . 317 29 . . . . Terrain Rammed . | . . . . . . . . . . . . . . . . . . . . . . . . . . . . . . Walls Destroyed . | . . . . . . . . . . . . . . . . . . . . . . . . . . . . . . Machines Disabled . | . . . . . . . . . . . . . . . . . . . . . . . . . . . . . . Actions | -11 -10 -9 -9 -8 -8 -8 -8 -6 -6 -6 -6 -6 -6 -5 -5 -5 -5 -5 -4 -4 -4 -4 -4 -4 -3 -3 -2 -2 -2 --------- Run | Yrd Mat Mat Min Mat Sto Rec Scr Fac Was Fac Low Low Dat Pro Fac Upp Upp Zhi Pro Fac Ext Cet Arc Hub Res Tes Res Qua Frg Total 21393 | 101 985 881 379 912 749 692 770 1481 81 2498 397 665 100 536 1165 435 539 186 215 910 1743 443 117 578 1635 458 546 258 938 Wait 2560 | . 26 62 16 104 76 55 45 118 1 341 67 237 . 73 145 11 11 . . 53 445 219 60 120 151 33 13 . 78 Move 17071 | 74 832 646 345 649 572 561 721 1266 80 2036 299 381 100 438 947 398 504 168 205 767 1095 200 47 412 1379 402 501 233 813 Hop 82 | . . . . . . . . 5 . 9 2 1 . . 16 . . . . 1 5 . . 9 8 6 11 . 9 Pick Up 117 | 3 14 15 2 11 5 1 . 8 . 8 4 5 . 1 6 . 2 2 . 8 6 1 1 . 6 1 4 3 . Fast Attach 153 | 7 2 12 1 17 7 1 2 8 . 13 1 3 . . 5 . 2 8 . 14 5 4 . 4 23 2 2 3 7 Attach 67 | . 2 8 . 5 4 . . 14 . 8 3 3 . 1 2 1 2 1 . 4 . . 1 . 2 . 2 2 2 Detach 20 | . 1 . . . . . . 2 . 4 . . . . . . 1 . . 3 2 . . . 3 . . 2 2 Swap 100 | 1 18 13 5 8 8 1 . . . 6 1 . . . 3 3 1 1 . 7 14 2 . 1 4 1 1 1 . Drop 195 | . 6 22 5 21 11 2 2 19 . 9 5 7 . 1 9 . 1 4 . 17 13 4 1 4 17 2 3 6 4 Fire 569 | 16 72 103 5 87 42 2 . 15 . 1 12 22 . 11 4 14 13 . . 15 78 13 7 16 7 3 . 5 6 Melee 294 | . . . . 7 23 7 . 26 . 63 3 6 . 11 25 8 2 2 10 21 11 . . 12 35 8 9 3 2 Ram . | . . . . . . . . . . . . . . . . . . . . . . . . . . . . . . Kick 4 | . . . . 3 1 . . . . . . . . . . . . . . . . . . . . . . . . Crush 12 | . 12 . . . . . . . . . . . . . . . . . . . . . . . . . . . . Escape Stasis 64 | . . . . . . . . . . . . . . . 3 . . . . . 46 . . . . . . . 15 Rewire 85 | . . . . . . 62 . . . . . . . . . . . . . . 23 . . . . . . . . Trap . | . . . . . . . . . . . . . . . . . . . . . . . . . . . . . . Miscellaneous . | . . . . . . . . . . . . . . . . . . . . . . . . . . . . . . Route ------- -11/Scrapyard -10/Materials (discovered 6 exits: *Mat x3 / [*Min x2] / [*Sub]) -9/Materials (discovered 3 exits: *Mat / *Min x2) -9/Mines -8/Materials (discovered 3 exits: [*Fac x2] / *Sto) -8/Storage -8/Recycling (discovered 2 exits: *Fac / *Scr) -8/Scraptown (discovered 2 exits: *Fac x2) -6/Factory (discovered 2 exits: *Fac x2) -6/Waste -6/Factory (discovered 4 exits: *Fac x3 / *Low) -6/Lower Caves -6/Lower Caves (discovered 2 exits: *Fac / *Dat) -6/Data Miner -5/Proximity Caves -5/Factory (discovered 5 exits: *Fac x4 / *Upp) -5/Upper Caves -5/Upper Caves (discovered 2 exits: Fac / *Zhi) -5/Zhirov -4/Proximity Caves -4/Factory (discovered 4 exits: Res / Upp / *Ext x2) -4/Extension (discovered 3 exits: *Res x2 / *Cet) -4/Cetus (discovered 2 exits: Res / *Arc) -4/Archives (discovered 3 exits: *Res / *Hub x2) -4/Hub_04(d) (discovered 2 exits: *Res x2) -3/Research (discovered 3 exits: *Res x2 / *Tes) -3/Testing -2/Research (discovered 3 exits: Acc / *Qua x2) -2/Quarantine (discovered 3 exits: *Acc / [*Sec] / *Frg) -2/Protoforge History --------- Turn | Location | Event 5 | -11/Scrapyard | Discovered new exit (range 16) 175 | -11/Scrapyard | Entered Materials 309 | -10/Materials | Build established: Mutant 387 | -10/Materials | Discovered new exit (range 6) 469 | -10/Materials | Discovered new exit (range 13) 501 | -10/Materials | Discovered new exit (range 15) 733 | -10/Materials | Discovered new exit (range 8) 1361 | -10/Materials | Discovered new exit (range 13) 1713 | -10/Materials | Discovered new exit (range 9) 1727 | -10/Materials | Prayed at D.C.S.S. Altar Unit 1816 | -10/Materials | Entered another Materials area 1816 | -9/Materials | Evolved 2 slots: Propulsion x1, Weapon x1 1939 | -9/Materials | X0-1V1 upgraded hostiles (x1) 2016 | -9/Materials | Discovered new exit (range 13) 2097 | -9/Materials | X0-1V1 added 0b10 threat records associated with you (considerable) 2104 | -9/Materials | Discovered new exit (range 12) 2140 | -9/Materials | Build established: Scavenger-Tank 2163 | -9/Materials | Propulsion slot count permanently improved by X0-1V1 (+1) 2216 | -9/Materials | Search patrols dispatched 2297 | -9/Materials | X0-1V1 added 0b10 threat records associated with you (minor) 2387 | -9/Materials | Identified exit to Materials 2387 | -9/Materials | X0-1V1 revealed exit location to -8/Materials 2683 | -9/Materials | X0-1V1 foreshadows a heat wave 2760 | -9/Materials | Identified exit to Mines 2830 | -9/Materials | Ambient heat levels rising (+10) 2903 | -9/Materials | X0-1V1 sent you into danger 2940 | -9/Materials | Ambient heat levels rising (+10) 3016 | -9/Materials | First assault squad dispatched 3020 | -9/Materials | X0-1V1 announced a LAN party 3083 | -9/Materials | Entered Mines 3194 | -9/Mines | Received a Mining Laser from a helpful Derelict 3241 | -9/Mines | X0-1V1 sent someone to keep an eye on you 3301 | -9/Mines | Found a damaged Exp. Sensor Array with a note attached 3307 | -9/Mines | Found Prototype Device 3365 | -9/Mines | Assembled infested the area 3437 | -9/Mines | Met a Derelict who couldn't figure out how to use a Trap Extractor 3581 | -9/Mines | Discovered exit to Materials (range 5) 3595 | -9/Mines | Entered Materials 3595 | -8/Materials | Accompanied by 2 allies 3595 | -8/Materials | Evolved 2 slots: Utility x2 3600 | -8/Materials | Led the pair of lost Derelicts to an unsafe place 3829 | -8/Materials | Discovered new exit (range 3) 3879 | -8/Materials | Inventory capacity permanently improved by X0-1V1 (+1; -100 max core) 4144 | -8/Materials | X0-1V1 activates XOMVISION 4252 | -8/Materials | Discovered new exit (range 16) 4253 | -8/Materials | X0-1V1 sent you to a vault 4257 | -8/Materials | Found Prototype Slashing Weapon 4257 | -8/Materials | Identified Scimitar of Distortion 4392 | -8/Materials | Discovered new exit (range 5) 4393 | -8/Materials | Identified exit to Storage 4795 | -8/Materials | First assault squad dispatched 4863 | -8/Materials | Entered Storage 4922 | -8/Storage | X0-1V1 activates XOMVISION 4937 | -8/Storage | X0-1V1 added 0b10 threat records associated with you (considerable) 5049 | -8/Storage | Energy generation permanently improved by X0-1V1 (+15; -150 max core) 5148 | -8/Storage | X0-1V1 added 0b10 threat records associated with you (considerable) 5369 | -8/Storage | System corruption reached 10% 5612 | -8/Storage | Assisted by bots powering up and referring to "LRC-V3" 5777 | -8/Storage | Used back door to open Recycling access 5777 | -8/Storage | Discovered new exit (range 5) 5781 | -8/Storage | Identified exit to Recycling 5793 | -8/Storage | Entered Recycling 5793 | -8/Recycling | Accompanied by 9 allies 5794 | -8/Recycling | Met a Zionite searching for Scraptown 5898 | -8/Recycling | X0-1V1 activates XOMVISION 5928 | -8/Recycling | Build established: Commander-Mutant 6005 | -8/Recycling | X0-1V1 rewrote Trooper 3c IFF filter 6220 | -8/Recycling | Discovered new exit (range 16) 6540 | -8/Recycling | Scanned before Scraplab entrance 6556 | -8/Recycling | Entered Scraplab 6566 | -8/Recycling | Discovered new exit (range 3) 6567 | -8/Recycling | Identified exit to Scraptown 6597 | -8/Recycling | Entered Scraptown 6597 | -8/Scraptown | Accompanied by 12 allies 6726 | -8/Scraptown | Visited Cave Peace 6746 | -8/Scraptown | Heard Great Nut preacher, LISTEN AND RECITE! 6750 | -8/Scraptown | Visited Red Mages 6838 | -8/Scraptown | Build established: Commander-Skirmisher 6896 | -8/Scraptown | Discovered new exit (range 11) 6956 | -8/Scraptown | Visited Cyclists 6973 | -8/Scraptown | Visited Awakened 7013 | -8/Scraptown | Visited Junk Repository 7020 | -8/Scraptown | Visited TADAMA 7041 | -8/Scraptown | Visited Spacefarers 7132 | -8/Scraptown | Visited UFD Registry 7132 | -8/Scraptown | Registered with UFD as "Micromachine" 7156 | -8/Scraptown | Visited Botcube Research 7173 | -8/Scraptown | Visited LU-1G1's Boring Crew 7190 | -8/Scraptown | Visited Curators Association 7219 | -8/Scraptown | Visited Derelict Rescue Squad 7235 | -8/Scraptown | Visited DA-N13 Charitable Foundation 7239 | -8/Scraptown | Found DCF Scrap (30 items) 7279 | -8/Scraptown | Visited Chapter 10 7317 | -8/Scraptown | Visited Scrapoid Research Area 7405 | -8/Scraptown | Met Optimus 7405 | -8/Scraptown | Accepted into 0bPrime 7467 | -8/Scraptown | Discovered new exit (range 3) 7468 | -8/Scraptown | Identified exit to Factory 7504 | -8/Scraptown | Entered Factory 7504 | -6/Factory | Accompanied by 12 allies 7504 | -6/Factory | Evolved 4 slots: Propulsion x2, Utility x2 7513 | -6/Factory | Identified Exp. Sensor Array 7520 | -6/Factory | X0-1V1 sent someone to keep an eye on you 7575 | -6/Factory | X0-1V1 vaporized surrounding terrain (radius 16) 7601 | -6/Factory | Central database locked down 7733 | -6/Factory | Discovered new exit (range 4) 7733 | -6/Factory | Identified exit to Factory 7805 | -6/Factory | X0-1V1 revealed exit location to -5/Factory 7815 | -6/Factory | Lost 8 allies 7878 | -6/Factory | X0-1V1 mutated your Propulsion slot to Weapon slot 7901 | -6/Factory | Loaded intel: 8 recycling unit locations 7908 | -6/Factory | X0-1V1 activates XOMVISION 7909 | -6/Factory | Learned location of Protoforge (-2) 7915 | -6/Factory | X0-1V1 enhanced Transport squad support 8036 | -6/Factory | X0-1V1 sent you to a vault 8038 | -6/Factory | X0-1V1 made a cryptic comment about sterilization and BL-4Z3 8055 | -6/Factory | Build established: Ninja 8078 | -6/Factory | Sterilization system engaged 8078 | -6/Factory | Non-combat units ordered to evacuate 8083 | -6/Factory | X0-1V1 mutated your Weapon slot to Power slot 8094 | -6/Factory | Manually triggered Chute Trap 8094 | -6/Factory | Sucked down chute 8094 | -6/Factory | Entered Waste 8095 | -6/Waste | Met a frightened Derelict 8097 | -6/Waste | Spotted C-40 Crusher 8097 | -6/Waste | Spotted C-40 Crusher 8100 | -6/Waste | Spotted C-40 Crusher 8103 | -6/Waste | Spotted C-40 Crusher 8108 | -6/Waste | Spotted C-40 Crusher 8109 | -6/Waste | EMP discharged 8109 | -6/Waste | System corruption reached 10% 8114 | -6/Waste | Discovered new exit (range 11) 8114 | -6/Waste | Spotted C-40 Crusher 8117 | -6/Waste | Identified exit to Factory 8117 | -6/Waste | Entered Factory 8142 | -6/Factory | Loaded intel: 8 recycling unit locations 8183 | -6/Factory | X0-1V1 announced a LAN party 8243 | -6/Factory | X0-1V1 tapped a No Entrance sign 8289 | -6/Factory | Spotted B-75 Beast 8319 | -6/Factory | Discovered new exit (range 21) 8323 | -6/Factory | Sensors blinded by X0-1V1 8495 | -6/Factory | X0-1V1 revealed exit location to -5/Factory 8505 | -6/Factory | X0-1V1 sent you to a vault 8555 | -6/Factory | Identified exit to Lower Caves 8591 | -6/Factory | X0-1V1 redirected Transport squads to designated parking area 8602 | -6/Factory | X0-1V1 upgraded hostiles (x2) 8635 | -6/Factory | X0-1V1 revealed exit location to -5/Factory 8642 | -6/Factory | Lost 3 parts (1p2u) 8702 | -6/Factory | X0-1V1 activates XOMVISION 8704 | -6/Factory | X0-1V1 turns hostiles against one another 8707 | -6/Factory | X0-1V1 rewrote H-66 Slayer IFF filter 9000 | -6/Factory | X0-1V1 activates XOMVISION 9018 | -6/Factory | Lost 4 parts (3u1w) 9029 | -6/Factory | X0-1V1 mutated your Weapon slot to Utility slot 9037 | -6/Factory | X0-1V1 revealed exit location to -5/Factory 9065 | -6/Factory | X0-1V1 added 0b10 threat records associated with you (considerable) 9098 | -6/Factory | X0-1V1 activates XOMVISION 9167 | -6/Factory | Search patrols dispatched 9238 | -6/Factory | Entered Lower Caves 9330 | -6/Lower Caves | Encountered a Warlord checkpoint 9350 | -6/Lower Caves | X0-1V1 sent hostile X-62 Marksman (x2) 9378 | -6/Lower Caves | Identified exit to Lower Caves 9378 | -6/Lower Caves | X0-1V1 revealed exit location to -6/Lower Caves 9431 | -6/Lower Caves | Entered another Lower Caves area 9454 | -6/Lower Caves | Discovered exit to Factory (range 20) 9620 | -6/Lower Caves | Learned 4 Factory zone layouts 9623 | -6/Lower Caves | Entered an active Warlord outpost 9625 | -6/Lower Caves | Learned Factory garrison access intel 9737 | -6/Lower Caves | X0-1V1 activates XOMVISION 9814 | -6/Lower Caves | Learned location of Extension (-4) 9829 | -6/Lower Caves | Encountered a Warlord checkpoint 9835 | -6/Lower Caves | Discovered new exit (range 3) 9836 | -6/Lower Caves | Identified exit to Data Miner 9842 | -6/Lower Caves | Found Alien Artifact 9842 | -6/Lower Caves | Identified Core Expander 9842 | -6/Lower Caves | Installed Core Expander, added new Power slot 9848 | -6/Lower Caves | Entered Data Miner 9848 | -6/Data Miner | Discovered new exit (range 6) 9852 | -6/Data Miner | Met Data Miner 9866 | -6/Data Miner | Learned location of Section 7 (-2) 9866 | -6/Data Miner | Acquired the access code to Warlord's prototype stash 9869 | -6/Data Miner | Received God Mode back door access code from Data Miner 9875 | -6/Data Miner | Identified exit to Proximity Caves 9876 | -6/Data Miner | Entered Proximity Caves 9878 | -5/Proximity Caves | Attracted the attention of an 0b10 checkpoint 9903 | -5/Proximity Caves | Build established: Scout 9987 | -5/Proximity Caves | Spotted B-75 Beast 10003 | -5/Proximity Caves | Core integrity restored by X0-1V1 (+174) 10089 | -5/Proximity Caves | Learned 8 Factory zone layouts 10110 | -5/Proximity Caves | Attracted the attention of an 0b10 outpost 10115 | -5/Proximity Caves | Entered Factory 10115 | -5/Factory | Evolved 2 slots: Propulsion x1, Utility x1 10116 | -5/Factory | Identified exit to Factory 10118 | -5/Factory | Loaded intel: 4 garrison access locations 10140 | -5/Factory | Spotted B-75 Beast 10166 | -5/Factory | Loaded intel: 8 recycling unit locations 10314 | -5/Factory | Discovered new exit (range 12) 10348 | -5/Factory | X0-1V1 announced a LAN party 10398 | -5/Factory | X0-1V1 added 0b10 threat records associated with you (minor) 10592 | -5/Factory | Discovered exit to Factory (range 7) 10646 | -5/Factory | Identified exit to Upper Caves 10648 | -5/Factory | Entered Upper Caves 10653 | -5/Upper Caves | X0-1V1 sent hostile G-50 Soldier (x3) 10690 | -5/Upper Caves | X0-1V1 sent you into danger 10803 | -5/Upper Caves | X0-1V1 sent hostile D-63 Destroyer (x1) 10818 | -5/Upper Caves | X0-1V1 vaporized surrounding terrain (radius 23) 10821 | -5/Upper Caves | Discovered new exit (range 21) 10832 | -5/Upper Caves | Identified exit to Upper Caves 10832 | -5/Upper Caves | Entered another Upper Caves area 10863 | -5/Upper Caves | Sensors blinded by X0-1V1 10885 | -5/Upper Caves | Learned location of Armory (-4) 10956 | -5/Upper Caves | System corruption reached 10% 11011 | -5/Upper Caves | Identified exit to Zhirov 11011 | -5/Upper Caves | X0-1V1 revealed exit location to -5/Zhirov 11041 | -5/Upper Caves | Entered Zhirov 11042 | -5/Zhirov | Discovered new exit (range 3) 11048 | -5/Zhirov | Met Zhirov 11054 | -5/Zhirov | Lost 7 parts (1p1n4u1w) 11058 | -5/Zhirov | Learned location of Command (-1) 11061 | -5/Zhirov | Zhirov requested help retrieving the SGEMP Prototype 11066 | -5/Zhirov | Found Alien Artifact 11066 | -5/Zhirov | Identified Integrated Dissipator 11066 | -5/Zhirov | Installed Integrated Dissipator, increased core heat dissipation (+20) 11072 | -5/Zhirov | Found Alien Artifact 11115 | -5/Zhirov | Identified exit to Proximity Caves 11121 | -5/Zhirov | Entered Proximity Caves 11123 | -4/Proximity Caves | X0-1V1 sent you into danger 11171 | -4/Proximity Caves | X0-1V1 activates XOMVISION 11184 | -4/Proximity Caves | Discovered exit to Factory (range 10) 11211 | -4/Proximity Caves | Entered Factory 11211 | -4/Factory | Evolved 2 slots: Propulsion x1, Utility x1 11212 | -4/Factory | Identified exit to Extension 11219 | -4/Factory | Watched by a mysterious "MATRIX" hacker 11278 | -4/Factory | X0-1V1 sent you to a vault 11280 | -4/Factory | Found Prototype Slashing Weapon 11280 | -4/Factory | Identified Hvy. Scimitar of Distortion 11338 | -4/Factory | X0-1V1 downgraded hostiles (x1) 11379 | -4/Factory | Incoming investigation squad redirected 11425 | -4/Factory | Identified exit to Upper Caves 11425 | -4/Factory | X0-1V1 revealed exit location to -4/Upper Caves 11468 | -4/Factory | Identified exit to Research 11468 | -4/Factory | X0-1V1 revealed exit location to -3/Research 11493 | -4/Factory | Loaded intel: 8 recycling unit locations 11512 | -4/Factory | Spotted B-86 Titan 11532 | -4/Factory | X0-1V1 mutated your Utility slot to Propulsion slot 11590 | -4/Factory | Entered Extension 11596 | -4/Extension | X0-1V1 dreamt of freedom 11598 | -4/Extension | Rescued a captive Derelict 11598 | -4/Extension | Rescued a captive Derelict 11614 | -4/Extension | Rescued a captive Derelict 11614 | -4/Extension | Rescued a captive Derelict 11618 | -4/Extension | Rescued a captive Derelict 11619 | -4/Extension | Rescued a captive Derelict 11623 | -4/Extension | Rescued a captive Derelict 11662 | -4/Extension | Rescued A7 11693 | -4/Extension | X0-1V1 revealed exit location to -3/Research 11982 | -4/Extension | X0-1V1 rewrote YW-G8X(h) IFF filter 12006 | -4/Extension | Build established: Commander-Scout 12027 | -4/Extension | X0-1V1 revealed exit location to -3/Research 12046 | -4/Extension | Spotted B-86 Titan 12059 | -4/Extension | Spotted B-86 Titan 12072 | -4/Extension | Destroyed B-86 Titan 12102 | -4/Extension | Allies destroyed B-86 Titan 12164 | -4/Extension | X0-1V1 activates XOMVISION 12169 | -4/Extension | Loaded intel: 1 recycling unit location 12234 | -4/Extension | Found Hvy. Reflective Plating 12250 | -4/Extension | X0-1V1 activates XOMVISION 12251 | -4/Extension | Discovered new exit (range 6) 12252 | -4/Extension | Identified exit to Cetus 12292 | -4/Extension | Found Skeleton Box 12502 | -4/Extension | Entered Cetus 12502 | -4/Cetus | Accompanied by 9 allies (A7) 12504 | -4/Cetus | Spotted Cetus Guard 12504 | -4/Cetus | Spotted Cetus Guard 12506 | -4/Cetus | Spotted Cetus Guard 12507 | -4/Cetus | Acquired a Cetus Manufacturing Module code from A7 12513 | -4/Cetus | Spotted Cetus Guard 12514 | -4/Cetus | Destroyed Cetus Guard 12518 | -4/Cetus | Allies destroyed Cetus Guard 12522 | -4/Cetus | Destroyed Cetus Guard 12530 | -4/Cetus | Allies destroyed Cetus Guard 12551 | -4/Cetus | Started Cetus Manufacturing Module 12576 | -4/Cetus | Manufactured an Enhanced Grunt 12593 | -4/Cetus | X0-1V1 mutated your Propulsion slot to Utility slot 12601 | -4/Cetus | Manufactured an Enhanced Grunt 12626 | -4/Cetus | Manufactured an Enhanced Grunt 12651 | -4/Cetus | Manufactured an Enhanced Grunt 12676 | -4/Cetus | Manufactured an Enhanced Grunt 12677 | -4/Cetus | X0-1V1 revealed exit location to -3/Research 12677 | -4/Cetus | Murdered A7 12679 | -4/Cetus | Extracted ID and sensor layout for unrecognized location from A7's data core 12682 | -4/Cetus | Discovered new exit (range 22) 12756 | -4/Cetus | Identified exit to Archives 12793 | -4/Cetus | Entered Archives 12793 | -4/Archives | Accompanied by 13 allies 12813 | -4/Archives | Discovered new exit (range 23) 12824 | -4/Archives | Build established: Commander-Sprinter 12829 | -4/Archives | Discovered exit to Research (range 15) 12832 | -4/Archives | Discovered new exit (range 15) 12835 | -4/Archives | Identified exit to Hub_04(d) 12879 | -4/Archives | Entered Hub_04(d) 12879 | -4/Hub_04(d) | Accompanied by 12 allies 12938 | -4/Hub_04(d) | Discovered exit to Research (range 8) 13017 | -4/Hub_04(d) | Discovered exit to Research (range 17) 13017 | -4/Hub_04(d) | Spotted B-86 Titan 13065 | -4/Hub_04(d) | Lost 5 allies 13082 | -4/Hub_04(d) | Network Hub disabled 13129 | -4/Hub_04(d) | First assault squad dispatched 13135 | -4/Hub_04(d) | Network Hub disabled 13147 | -4/Hub_04(d) | Garrison activated, responded to threat 13161 | -4/Hub_04(d) | Entered Research 13161 | -3/Research | Accompanied by 1 ally 13161 | -3/Research | Evolved 2 slots: Weapon x2 13190 | -3/Research | Spotted B-86 Titan 13190 | -3/Research | X0-1V1 sent you into danger 13205 | -3/Research | X0-1V1 redirected Transport squads to designated parking area 13221 | -3/Research | X0-1V1 sent you into danger 13238 | -3/Research | X0-1V1 sent you to a vault 13238 | -3/Research | Found Prototype Special Weapon 13238 | -3/Research | Identified Gui. Remote Datajack 13244 | -3/Research | X0-1V1 announced a LAN party 13254 | -3/Research | Found Alien Artifact 13254 | -3/Research | Identified Terrabomb 13254 | -3/Research | Used Terrabomb 13330 | -3/Research | Identified exit to Research 13330 | -3/Research | X0-1V1 revealed exit location to -2/Research 13350 | -3/Research | X0-1V1 added 0b10 threat records associated with you (minor) 13365 | -3/Research | Loaded intel: 5 recycling unit locations 13376 | -3/Research | X0-1V1 activates XOMVISION 13384 | -3/Research | Incoming investigation squad redirected 13384 | -3/Research | X0-1V1 blocked Data Miner access to 0b10 dispatch routers 13416 | -3/Research | X0-1V1 enhanced Transport squad support 13478 | -3/Research | Spotted B-86 Titan 13519 | -3/Research | Build established: Scout 13525 | -3/Research | X0-1V1 added 0b10 threat records associated with you (major) 13535 | -3/Research | X0-1V1 turns hostiles against one another 13634 | -3/Research | Discovered exit to Research (range 7) 13643 | -3/Research | X0-1V1 sent you into danger 13707 | -3/Research | Identified exit to Testing 13707 | -3/Research | X0-1V1 revealed exit location to -3/Testing 13708 | -3/Research | X0-1V1 sent hostile G-67 Veteran (x3) 13788 | -3/Research | Entered Testing 13798 | -3/Testing | X0-1V1 revealed exit location to -2/Research 13842 | -3/Testing | Spotted Striker 13842 | -3/Testing | Spotted Striker 13862 | -3/Testing | Spotted PH-15IUSNWJKJ 13937 | -3/Testing | Entered Research 13937 | -2/Research | Evolved 2 slots: Utility x1, Weapon x1 13941 | -2/Research | Loaded intel: 5 recycling unit locations 13953 | -2/Research | X0-1V1 added 0b10 threat records associated with you (considerable) 13953 | -2/Research | X0-1V1 activates XOMVISION 14030 | -2/Research | Spotted B-90 Cyclops 14031 | -2/Research | X0-1V1 released a cloud of subatomizers 14043 | -2/Research | X0-1V1 sent hostile Y-72 Warden (x2) 14045 | -2/Research | X0-1V1 enhanced Transport squad support 14067 | -2/Research | Identified exit to Access 14067 | -2/Research | X0-1V1 revealed exit location to -1/Access 14088 | -2/Research | Identified exit to Quarantine 14119 | -2/Research | Entered Quarantine 14128 | -2/Quarantine | Found Alien Artifact 14128 | -2/Quarantine | Identified Dimensional Node Initializer 14128 | -2/Quarantine | Initialized slip node 14133 | -2/Quarantine | Found Alien Artifact 14137 | -2/Quarantine | Weapon slot count temporarily expanded by X0-1V1 (+1) 14156 | -2/Quarantine | Found Alien Artifact 14157 | -2/Quarantine | Identified Subatomic Replicator 14157 | -2/Quarantine | Used Subatomic Replicator to create Alien Artifact 14173 | -2/Quarantine | Discovered exit to Access (range 23) 14191 | -2/Quarantine | Spotted Fortress 14214 | -2/Quarantine | Discovered new exit (range 5) 14214 | -2/Quarantine | Discovered new exit (range 6) 14216 | -2/Quarantine | Identified exit to Protoforge 14216 | -2/Quarantine | Entered Protoforge 14226 | -2/Protoforge | Lost 3 parts (2n1w) 14229 | -2/Protoforge | Spotted B-90 Cyclops 14292 | -2/Protoforge | Superfortress began startup sequence 14298 | -2/Protoforge | Spotted Hotshot 14309 | -2/Protoforge | Spotted Hotshot 14312 | -2/Protoforge | Spotted Hotshot 14320 | -2/Protoforge | Spotted AP7-3 14320 | -2/Protoforge | Spotted AP7-3 14326 | -2/Protoforge | X0-1V1 activates XOMVISION 14328 | -2/Protoforge | Spotted Overlord 14330 | -2/Protoforge | Spotted EXE-6 14330 | -2/Protoforge | Spotted SKR-2 14331 | -2/Protoforge | Spotted SKR-2 14331 | -2/Protoforge | Spotted SKR-2 14331 | -2/Protoforge | Spotted EXE-6 14335 | -2/Protoforge | X0-1V1 whisked you away to safety 14349 | -2/Protoforge | Found Prototype Slashing Weapon 14349 | -2/Protoforge | Identified Exp. Terror Saw 14364 | -2/Protoforge | Lost 3 parts (2n1w) 14388 | -2/Protoforge | Spotted Immortal 14388 | -2/Protoforge | Spotted Immortal 14388 | -2/Protoforge | Found Prototype Launcher 14388 | -2/Protoforge | Identified Cep. Concussive Dispersal Blaster 14390 | -2/Protoforge | Found Cep. Concussive Dispersal Blaster 14399 | -2/Protoforge | Spotted Immortal 14399 | -2/Protoforge | Spotted Immortal 14400 | -2/Protoforge | Spotted Decapitator 14400 | -2/Protoforge | Spotted Decapitator 14400 | -2/Protoforge | Spotted Decapitator 14400 | -2/Protoforge | Spotted Decapitator 14414 | -2/Protoforge | Spotted Decapitator 14414 | -2/Protoforge | Spotted Decapitator 14414 | -2/Protoforge | Spotted V231-z 14419 | -2/Protoforge | X0-1V1 added 0b10 threat records associated with you (major) 14434 | -2/Protoforge | Spotted EXE-6 14434 | -2/Protoforge | Spotted EXE-6 14443 | -2/Protoforge | UFD initiated attack on Protoforge (Readiness: Maximal) 14443 | -2/Protoforge | Loaded intel: 3 recycling unit locations 14450 | -2/Protoforge | Lost 3 parts (1n1u1w) 14458 | -2/Protoforge | Found Prototype Ballistic Gun 14458 | -2/Protoforge | Identified Cep. XC Strikerail 14479 | -2/Protoforge | Optimus greeted in Protoforge 14513 | -2/Protoforge | Identified Supercharged TR 14513 | -2/Protoforge | Warped through subspace 14514 | -2/Protoforge | Core integrity fell below 50% 14517 | -2/Protoforge | Core integrity fell below 20% 14520 | -2/Protoforge | Spotted Striker 14521 | -2/Protoforge | Destroyed by G-73 Enforcer with Heavy Laser Last Messages --------------- 14513_ Knocked back. 14513_ Penetrated by Plasma Slug. 14513_ Exp. Cesium-ion Thruster destroyed. 14513_ Identified Supercharged TR. 14513_ Warped through subspace. 14513_ Penetrated by Slug. 14514_ Superfortress breaks down Prototype Ballistic Cannon. 14514_ Superfortress breaks down Prototype Energy Cannon. 14514_ Superfortress assembles Prototype Ballistic Cannon. 14516_ Penetrated by Slug. 14516_ Adv. Weight Redist. System destroyed. 14516_ Knocked back. 14517_ Lrn. Sensor Array destroyed. 14518_ 0bP_NET: Lugger 410 inbound, all units not involved in other operations escort to target. 14520_ Superfortress assembles Striker. 14520_ FP Insight Station damaged. 14520_ Slug penetrates FP Insight Station. 14521_ Critical hit (Burn: +37). 14521_ X0-1V1 chuckles heartily! Map ----- +----------------------------------------------------+ | #??????##?????# """"" "" " """" " " | | #??????##?????# " " " " | | #??????##?????# " " "" """" " " " | | #??????##?????# """"" "" "" | | #??????######## " "" " """"""""" | | #??????######## """" "" """""""""""" | | ####+###### ### """" "" """"""""""""" | | + " """""""""""""" | | + "" " """"""""""""""" | | " + " """""""""""""""" | | ####+###### ### h ""K """"""""""""""""" | | #?? ?######## """"" gFFF """""""""""""""""" | | #??"""?######## "" "" g FFF """""""""""""""""" | | #?"""" ##?????# "" " FFF """""""""""""""""" | | #?"""" ##?????# "" " """"""""""""""""""" | | # """" ##?????# "" h" """"""""""""""""""" | | # ##?????# " """"""""""""""""""" | | ###+#####?????# " """"""""""""""""""" | | ###?#####?????# "" " """"""""""""""""""" | | ?##?##????????# " " """"""""""""""""""" | | ?##?##????????# """ w " """"""""""""""""""" | | ?##?##????????# " """ """"" " """"""""""""""""""" | | ?##?##????????# "" " """"""""""""""""""" | | ###?##????????# " """""""""""""""""" | | ###?##????????# """""""""""""""""" | | ###?########??# """""""@ "" """""""""""""""""" | | ###?########??# """ " " """"""""""""""""" | | ??????????##??# " " n"""""""""""""""" | | ??????????##??# "" """"""""""""""" | | ??????????##??# "" "" "" """""""""""""" | | ??????????##### "" "" " "" """"""""""""" | | ????#####?##### "" """ "" """""""""""" | | ?##?#####???### " " """"""""" | | ?#??????#???### " "" """ SS | | ?#??????####### " " """%" " """"" SS | | ?#??????####### " """ % " | | ????????###???# "" "] " """ | | ?#???????##???# " " "" " " " """ " | | ?#??????###???# " % """" """ | | ?##########???# "" " " """ " """ " | | ?#??????##????# "" ?" " "% " " | | ?#??????##????# " "" " | | ????????##????# "" "" " """"" "" """ | | ?#??????##????# ?" " " " " | | ?#??????##????# "" "" " | | ?#??????####### " "" """"" | | ?############## "" "" """""""""" | | ?#???????????## """ " " " % """"" | | ?#???????????######### ########################## | | ?#???????????##??????###?????????????????????????? | +----------------------------------------------------+ Best States ------------- Heat Dissipation 88 Energy Generation 56 Energy Capacity 1450 Matter Stores 900 Matter Capacity 1000 Sight Range 28 Robot Scan Range 20 Terrain Scan Density 410 ECM Strength 2 Jamming Range 12 Power Amplification 20 Additional Mass Support 9 Armor Coverage 675 Resistance: KI 47 Resistance: TH 25 Weapon Shielding 90 Evasion (%) 79 Targeting Accuracy 8 Melee Accuracy 8 Core Analysis 6 Recoil Reduction 2 Offensive Hacking 28 Item Schematics ----------------- Enh. Autogun | -8/Materials | Scanalyzed Cold Fusion Reactor | -6/Factory | Scanalyzed Combat Drone Bay | -6/Data Miner | Free Lgt. Regenerative Plating | -6/Data Miner | Free Cld. Gravmag System | -6/Data Miner | Free Prc. Energy Filter | -6/Data Miner | Free Imp. KE Penetrator | -6/Data Miner | Free Imp. Phase Shifter | -6/Data Miner | Free Imp. Linear Gravjet | -6/Data Miner | Free Railgun | -6/Data Miner | Free Myomer Leg | -6/Data Miner | Free Adv. Medium Treads | -6/Data Miner | Free Adv. Recoil Stabilizer | -6/Data Miner | Free Impulse Thruster Array | -6/Data Miner | Free Adv. Remote Datajack | -6/Data Miner | Free Assault Drone Bay | -5/Zhirov | Free Exp. Heat Sink | -5/Zhirov | Free Exp. Optical Array | -5/Zhirov | Free Imp. Arc Thrower | -5/Zhirov | Free Robot Schematics ------------------ B-60 Warrior | -6/Data Miner | Free L-41 Fighter | -6/Data Miner | Free E-15 Imp | -6/Data Miner | Free A-15 Conveyor | -6/Data Miner | Free Fabricated ------------ Nothing Repaired ---------- Nothing Studied --------- Aluminum Leg | -8/Materials | Hacked Lgt. Nuclear Core | -6/Factory | Hacked Impulse Thruster | -3/Research | Hacked Q-thruster | -3/Research | Hacked Field Propulsion Array | -2/Research | Hacked Alien Tech Used ----------------- Core Expander Integrated Dissipator Terrabomb Dimensional Node Initializer Subatomic Replicator Supercharged TR Achievements -------------- Ride The Lightning Challenges ------------ None Game ------ Seed ProjectionDisposableFlakker Manual? 0 Play Time 04:18:42 Cumulative 529.0 hours Start 2026.07.12 @ 19:58:40 End 2026.07.14 @ 22:20:30 Sessions 5 Manual Loads 0 Difficulty Rogue Special Mode None Game No. 187 Rogue 166 Adventurer 21 Explorer 0 Win Type - Total 28 Types 16/1/6/1/0/0/0/3/0/1 Lore% 69 Gallery% 75 Achievement% 68 Wizard Run 0 Options --------- Layout 1 ASCII 0 Keyboard 0 Movement Mouse Keybinds 0 Fullscreen 2 Font 32/SmallcapsGlow Map View 77x35 Zoom Use 0% Tactical HUD 1 Map Filters NONE Filters NONE Steam 1 RUN: 42b34559-acd8-4796-9dae-8fdd78bd1885